Cogmind - Beta 13 @@@ ROGUE MODE // 2024.03.01 @ 17:10:46 Player: Benkyo Result: Escaped singularity! Performance ------------- Evolutions (9) 4500 Regions Visited (35) 7000 Robots Destroyed (563) 2815 Value Destroyed (31354) 31354 Prototype IDs (317) 6340 Alien Tech Used (14) 2800 Bonus (75297) 75297 TOTAL SCORE: 130106 Bonus ------- Triggered High Security 500 Triggered Max Security 2000 High Alert Combat Kills 10084 Follower Combat Kills 2495 Awakened Behemoth Slayer 1000 Entered Garrisons 200 Network Hubs Disabled 200 Met Imprinter 300 Destroyed Z-Imprinter 1000 Triggered Deep Caves Wall 500 Exposed GOLEM Chamber 500 Acquired ECA 300 Met Zhirov 300 Met Warlord at Base 500 MAIN.C Attacked Warlord 500 Warlord Defense Kills 506 Built Enhanced Grunts 300 Met R17 at Cetus 500 Found Hidden Lab 3000 Used Core Reset Matrix 3000 Met R17 at Research 2000 Met Warlord at Research 2000 Scanned by Researcher 500 Integrated Exoskeleton 5000 Destroyed MAIN.C Guards 500 Met MAIN.C 5000 Destroyed MAIN.C Shell 5000 Destroyed MAIN.C 10000 Met Architect 300 Destroyed A8 300 Destroyed A6 400 Destroyed Architect 15000 Win 3000 Friendly Fire -1388 Cogmind --------- Core Integrity 223/1600 Matter 295/300 Energy 334/340 System Corruption 3% Temperature Cool (0) Movement Walking (30) Location Near Former Tau Ceti IV Parts ------- > --- POWER (1) -------- Zero-point Reactor > --- PROPULSION (3) --- Sigix Exoskeleton > --- UTILITY (4) ------ Experimental Targeting Computer Experimental Core Analyzer AEGIS Remote Shield > --- WEAPON (3) ------- Sigix Sheargun Sigix Sheargun Sigix Sheargun > --- INVENTORY (7) ---- Advanced Energy Well (500) Experimental Energy Well (600) Zionite Biocell (600) Advanced Phase Shifter Experimental System Purifier Spacefold Activator Warp Cannon Peak State ------------ > --- POWER ------------ Improved Quantum Reactor > --- PROPULSION ------- Sigix Exoskeleton > --- UTILITY ---------- Experimental Target Analyzer Experimental Core Analyzer Experimental Reaction Control System Advanced Force Field > --- WEAPON ----------- Sigix Sheargun Sigix Sheargun Sigix Sheargun > --- INVENTORY -------- Zionite Biocell Advanced Phase Shifter Antimissile System High-powered Transdimensional Reconstructor Core Regenerator Spacefold Activator Warp Cannon [Rating: 249] Favorites ----------- Power Assembled Flux Generator Engine Improved Deuterium Engine Power Core Nuclear Core Reactor Assembled Flux Generator Propulsion Centrium Heavy Treads Treads Centrium Heavy Treads Leg Assembled Alloy Leg Wheel Armored Huge Wheel Hover Unit Zionite Glidesys I Utility Huge Storage Unit Device Assembled Combat Suite Storage Huge Storage Unit Processor Advanced Targeting Computer Hackware Improved Hacking Suite Protection Assembled Alloy Armor Artifact Spacefold Activator Weapon Assembled Focal Cannon Energy Gun Sigix Sheargun Energy Cannon Assembled Focal Cannon Ballistic Gun Minigun Ballistic Cannon Gauss Cannon Launcher Heavy Rocket Launcher Special Weapon RU-N14's Throwing Claymores Impact Weapon Power Maul Slashing Weapon Ripper Piercing Weapon CR-A16's Behemoth Slayer Build | -11 -10 -10 -8 -8 -8 -7 -7 -7 -7 -7 -6 -6 -6 -6 -6 -6 -5 -5 -5 -5 -4 -4 -4 -4 -4 -3 -3 -3 -3 -2 -2 -2 -1 -1 -1 ------- Run | Yrd Mat Sub Mat Gar Mat Fac Low Low Zio Dee Pro Fac Ext Cet Arc Hub Fac Upp Upp Zhi Pro Fac Upp Upp War Pro Res Arm Lab Res Qua Sec Acc Com Ac0 Slots Evolved 18 | . . . 4 . . 2 . . . . . 2 . . . . 2 . . . . 2 . . . . 2 . . 2 . . 2 . . Power 2 | . . . . . . 1 . . . . . . . . . . . . . . . . . . . . 1 . . . . . . . . Propulsion 4 | . . . . . . . . . . . . 2 . . . . . . . . . 2 . . . . . . . . . . . . . Utility 11 | . . . 4 . . 1 . . . . . . . . . . 2 . . . . . . . . . 1 . . 2 . . 1 . . Weapon 1 | . . . . . . . . . . . . . . . . . . . . . . . . . . . . . . . . . 1 . . Parts Attached 545 | 7 7 20 32 12 14 8 12 12 9 48 14 4 8 8 2 8 24 12 10 5 16 26 12 4 8 12 4 30 5 9 12 69 10 52 . Power 22 | 1 . 2 1 . 2 3 . 1 . 3 . . . 2 . . . . . . . . . . 1 . 1 . . . 1 2 . 2 . Engine 10 | 1 . 2 1 . 1 2 . 1 . 2 . . . . . . . . . . . . . . . . . . . . . . . . . Core 2 | . . . . . 1 1 . . . . . . . . . . . . . . . . . . . . . . . . . . . . . Reactor 10 | . . . . . . . . . . 1 . . . 2 . . . . . . . . . . 1 . 1 . . . 1 2 . 2 . Propulsion 40 | 2 . 3 5 1 2 . . . . 5 . . . 1 2 . 2 . . . . 7 1 . . 1 . 4 . 1 1 2 . . . Treads 22 | 2 . 1 2 1 . . . . . . . . . 1 1 . 2 . . . . 2 1 . . 1 . 4 . 1 1 2 . . . Leg 8 | . . . . . . . . . . 2 . . . . 1 . . . . . . 5 . . . . . . . . . . . . . Wheel 9 | . . 2 3 . 2 . . . . 2 . . . . . . . . . . . . . . . . . . . . . . . . . Hover 1 | . . . . . . . . . . 1 . . . . . . . . . . . . . . . . . . . . . . . . . Flight . | . . . . . . . . . . . . . . . . . . . . . . . . . . . . . . . . . . . . Utility 381 | 2 1 5 17 3 6 4 5 5 5 23 11 4 8 3 . 7 22 12 9 5 14 17 10 4 5 10 3 26 5 7 7 57 9 50 . Device 249 | 1 . 2 8 1 3 1 4 5 4 10 11 3 7 1 . 5 15 8 4 4 6 9 8 4 1 6 3 20 4 5 4 38 8 36 . Storage 13 | 1 1 1 . . 1 1 . . . 3 . . . . . . . 1 . . 1 . 1 . . 1 . . 1 . . . . . . Processor 31 | . . . 5 2 . 1 . . . 1 . . . . . . . . . . . . . . 1 1 . 1 . . . 8 1 10 . Hackware 3 | . . . . . . . . . . . . . . . . . 1 . . . . 2 . . . . . . . . . . . . . Protection 80 | . . 2 4 . 2 1 1 . 1 9 . 1 1 2 . 2 6 3 5 1 7 6 1 . 3 2 . 5 . 2 3 10 . . . Artifact 5 | . . . . . . . . . . . . . . . . . . . . . . . . . . . . . . . . 1 . 4 . Weapon 102 | 2 6 10 9 8 4 1 7 6 4 17 3 . . 2 . 1 . . 1 . 2 2 1 . 2 1 . . . 1 3 8 1 . . Energy Gun 9 | . . 1 . . . . . . . 5 . . . 1 . . . . . . . . . . 1 . . . . . . . 1 . . Energy Cannon 14 | . . 1 . . . . . . . 3 . . . . . . . . . . . . . . . . . . . 1 2 7 . . . Ballistic Gun 13 | 2 1 3 1 4 . . . . . . . . . 1 . . . . . . . 1 . . . . . . . . . . . . . Ballistic Cannon 31 | . 3 3 6 . 3 1 4 4 2 4 . . . . . . . . . . . . . . . . . . . . 1 . . . . Launcher 16 | . . 1 . 4 1 . 2 2 1 2 2 . . . . 1 . . . . . . . . . . . . . . . . . . . Special Weapon 6 | . 2 . . . . . . . . 3 . . . . . . . . . . . . . . 1 . . . . . . . . . . Impact Weapon 4 | . . . 2 . . . . . 1 . . . . . . . . . . . 1 . . . . . . . . . . . . . . Slashing Weapon 2 | . . 1 . . . . 1 . . . . . . . . . . . . . . . . . . . . . . . . . . . . Piercing Weapon 7 | . . . . . . . . . . . 1 . . . . . . . 1 . 1 1 1 . . 1 . . . . . 1 . . . Special Melee Weapon . | . . . . . . . . . . . . . . . . . . . . . . . . . . . . . . . . . . . . Unidentified Prototypes 40 | . . . . . . . . . 1 13 . 1 1 4 1 . . . . 2 1 . . . 5 . . . 1 . 3 2 . 5 . Corrupted Parts 1 | . . . . . . . . . . 1 . . . . . . . . . . . . . . . . . . . . . . . . . System Corruption 4 | . . . . . . . . . . 4 . . . . . . . . . . . . . . . . . . . . . . . . . Parts Lost 39 | . . 4 6 1 1 2 . . . 2 1 . 1 1 . 5 3 1 . . 1 9 . . 1 . . . . . . . . . . Power 6 | . . 1 1 . 1 . . . . 1 . . . . . 2 . . . . . . . . . . . . . . . . . . . Propulsion 5 | . . . 2 . . . . . . . . . . . . . . . . . . 3 . . . . . . . . . . . . . Utility 19 | . . 2 1 1 . 1 . . . 1 1 . 1 1 . 1 3 1 . . 1 4 . . . . . . . . . . . . . Weapon 9 | . . 1 2 . . 1 . . . . . . . . . 2 . . . . . 2 . . 1 . . . . . . . . . . Highest Loss Streak 5 | . . 2 1 1 1 2 . . . 1 1 . 1 1 . 4 3 1 . . 1 5 . . 1 . . . . . . . . . . To Critical Strikes . | . . . . . . . . . . . . . . . . . . . . . . . . . . . . . . . . . . . . Average Slot Usage (%) 81 | . 100 95 92 90 85 83 83 79 83 83 78 78 81 82 79 79 75 75 76 77 74 80 83 84 84 74 80 78 75 73 72 72 81 80 81 Engine 4 | . 14 14 8 9 7 11 15 10 15 12 . . . . . . . . . . . . . . . . . . . . . . . . . Reactor 4 | . . . . . . . . . . . 6 6 6 7 13 12 4 5 5 4 5 5 5 5 5 5 9 9 9 8 8 8 9 9 9 Treads 6 | . 28 16 4 7 4 . . . . . . . . 1 12 13 10 11 11 11 11 8 5 5 5 8 9 13 14 13 13 11 . . . Leg 5 | . . . . . . . . . . 1 6 15 18 17 . . . . . . . 14 22 21 21 12 9 . . . . . 9 9 9 Wheel 2 | . . 11 13 10 9 7 7 7 7 5 . . . . . . . . . . . . . . . . . . . . . . . . . Device 16 | . 14 8 9 5 9 12 7 7 8 16 21 18 17 13 20 18 19 13 28 27 27 17 22 21 21 19 23 21 18 17 15 15 9 9 9 Storage 9 | . 14 9 9 9 9 7 7 7 7 7 13 12 12 12 12 13 11 10 11 11 11 10 9 10 10 9 9 9 9 8 8 7 . . . Processor 9 | . . . 18 21 18 17 23 23 21 12 6 6 6 6 6 6 5 3 . . . . . . 2 . 4 8 9 8 8 9 27 25 27 Protection 6 | . . 5 10 9 8 7 7 7 7 8 6 6 6 8 . 1 7 10 5 8 5 8 8 10 7 8 4 4 4 7 9 7 . . . Energy Gun 1 | . . . . . . . . . . . . . . . . . . . . . . . . . . . . . . . . 1 27 27 27 Energy Cannon 6 | . . 7 . . . . . . . 3 13 12 12 12 12 12 11 10 10 11 10 9 8 10 9 9 9 9 9 8 7 6 . . . Ballistic Cannon 4 | . 20 14 16 9 13 14 13 15 11 9 . . . . . . . . . . . . . . . . . . . . . . . . . Naked Turns . | . . . . . . . . . . . . . . . . . . . . . . . . . . . . . . . . . . . . Heaviest Build 217 | 14 32 97 118 114 120 131 136 130 137 161 161 160 167 167 157 162 170 178 178 186 180 178 183 183 183 178 176 197 194 202 217 214 53 55 51 Greatest Support 260 | 40 40 40 26 26 28 28 28 28 28 75 55 115 85 85 160 160 160 180 180 180 180 180 130 110 110 130 80 255 235 235 245 260 60 60 60 Greatest Overweight (x) 43 | 2 . 9 9 7 11 4 4 4 4 4 2 2 1 2 5 1 1 1 . 1 1 3 1 1 1 43 2 2 . . . . . . . Average Overweight (x) 1 | . . 5 5 6 5 4 4 4 4 3 2 1 1 1 1 . . . . . . . 1 1 1 1 2 . . . . . . . . Largest Inventory Capacity 27 | 8 15 25 25 25 25 25 25 25 25 25 25 25 25 25 25 25 25 25 25 25 25 25 25 25 25 25 25 25 25 25 25 27 7 7 7 Average Capacity 23 | 7 14 18 25 25 25 25 25 25 25 24 25 25 25 25 25 25 25 24 25 25 24 25 24 25 25 21 25 25 25 25 25 22 7 7 7 Most Carried 25 | 5 10 19 25 25 25 25 25 25 25 25 25 25 25 25 25 25 25 25 25 25 25 25 25 25 25 25 24 25 25 25 25 25 7 7 7 Average Carried 22 | 4 9 10 24 24 24 23 24 25 24 23 23 24 24 24 24 24 22 23 24 24 24 24 24 24 24 21 23 24 22 24 24 22 6 6 6 Final Capacity 25 | 8 15 25 25 25 25 25 25 25 25 25 25 25 25 25 25 25 25 25 25 25 25 25 25 25 25 25 25 25 25 25 25 7 7 7 7 Final Carried 25 | 5 10 18 25 24 25 25 25 25 25 25 24 25 25 25 25 23 25 25 25 25 24 25 25 25 25 25 23 24 25 25 25 7 6 6 7 Class Distribution -------------------- 38% | Golem 28% | Mutant 9% | Scavenger-Golem 6% | Alien-Sigix 4% | Subdweller-Mutant Dominant Class ---------------- Mutant | -10/Materials Subdweller-Mutant | -10/Subcaves Scavenger-Mutant | -8/Materials Mutant | -8/Garrison Mutant | -8/Materials Mutant | -7/Factory Mutant | -7/Lower Caves Mutant | -7/Lower Caves Mutant | -7/Zion Mutant | -7/Deep Caves Golem | -6/Proximity Caves Golem | -6/Factory Golem | -6/Extension Golem | -6/Cetus Scavenger-Golem | -6/Archives Scavenger-Golem | -6/Hub_04(d) Golem | -5/Factory Golem | -5/Upper Caves Golem | -5/Upper Caves Mutant | -5/Zhirov Golem | -4/Proximity Caves Golem | -4/Factory Scavenger-Golem | -4/Upper Caves Golem | -4/Upper Caves Commander-Golem | -4/Warlord Golem | -3/Proximity Caves Golem | -3/Research Skirmisher | -3/Armory Mutant | -3/Lab Alien-Mutant | -2/Research Alien-Skirmisher | -2/Quarantine Alien-Skirmisher | -2/Section 7 Alien-Sigix | -1/Access Alien-Sigix | -1/Command Alien-Sigix | -1/Access_0 Resources | -11 -10 -10 -8 -8 -8 -7 -7 -7 -7 -7 -6 -6 -6 -6 -6 -6 -5 -5 -5 -5 -4 -4 -4 -4 -4 -3 -3 -3 -3 -2 -2 -2 -1 -1 -1 ----------- Run | Yrd Mat Sub Mat Gar Mat Fac Low Low Zio Dee Pro Fac Ext Cet Arc Hub Fac Upp Upp Zhi Pro Fac Upp Upp War Pro Res Arm Lab Res Qua Sec Acc Com Ac0 Matter Collected 9752 | 290 317 404 1264 682 813 227 412 526 127 1131 261 20 95 80 20 55 291 120 80 . 205 337 152 40 80 90 . 317 . 226 140 599 45 296 10 Remotely 212 | . . . . . . . . . . . . . . . . . . . . . . . . . . . . 107 . . . 105 . . . Salvage Created 34546 | 117 278 309 856 836 1305 300 121 297 . 807 1430 110 950 479 177 1346 1880 1507 511 . 1145 2957 671 243 175 512 . 1175 . . 688 2472 582 9324 986 Parts 1615 | 7 26 26 55 42 59 20 6 4 . 16 48 8 49 26 9 55 96 60 20 . 41 149 21 10 4 21 . 71 . . 32 139 44 363 88 Haulers Intercepted 6 | . . . 2 . 2 1 . . . . . . . . . . 1 . . . . . . . . . . . . . . . . . . Recyclers Shooed 7 | . . . 1 . 3 . . . . . . . . . . . . . . . . 2 . . . . . . . . . 1 . . . Parts Field Recycled . | . . . . . . . . . . . . . . . . . . . . . . . . . . . . . . . . . . . . Retrieved Matter . | . . . . . . . . . . . . . . . . . . . . . . . . . . . . . . . . . . . . Parts Self-Destructed 246 | . . 14 . . . . 4 8 5 . 40 . . . . . . 60 21 . 44 . 19 10 . 21 . . . . . . . . . Prevented 4 | . . . . . . . . 1 . . . . . . . . . . 3 . . . . . . . . . . . . . . . . Kills | -11 -10 -10 -8 -8 -8 -7 -7 -7 -7 -7 -6 -6 -6 -6 -6 -6 -5 -5 -5 -5 -4 -4 -4 -4 -4 -3 -3 -3 -3 -2 -2 -2 -1 -1 -1 ------- Run | Yrd Mat Sub Mat Gar Mat Fac Low Low Zio Dee Pro Fac Ext Cet Arc Hub Fac Upp Upp Zhi Pro Fac Upp Upp War Pro Res Arm Lab Res Qua Sec Acc Com Ac0 Combat Hostiles Destroyed 511 | . 10 13 24 26 24 6 5 8 . 47 19 1 13 8 2 16 29 26 4 . 18 36 8 4 3 8 . 18 . . 4 27 4 92 8 Melee 2 | . . . . . . . . . . . . . . . . . . . . . . . . . . . . . . . . . . 2 . Guns 122 | . 4 5 . 3 3 . . . . 1 . . . . . . . . . . . 2 . . 2 . . . . . . . 4 90 8 Cannons 298 | . 6 8 24 12 18 6 2 3 . 6 7 1 13 6 2 15 29 25 3 . 17 31 7 4 1 7 . 18 . . 3 24 . . . AOE 74 | . . . . 11 3 . 3 5 . 38 11 . . . . 1 . . . . . 2 . . . . . . . . . . . . . Classes Destroyed 34 | 2 5 2 5 2 2 . 1 . . 4 3 . . . . . . . . . 2 1 . . 1 . . . . . 1 1 . 2 . Worker 17 | . 1 . 2 . 1 . . . . . . . . . . 8 . . . . . 1 . . . . . . . . . . 1 3 . Builder 9 | . . . 2 . . 1 . . . . . . . . . . . . . . . 5 . . . . . . . . . . 1 . . Tunneler 4 | 2 . . . . 2 . . . . . . . . . . . . . . . . . . . . . . . . . . . . . . Hauler 6 | . . . 2 . 2 1 . . . . . . . . . . 1 . . . . . . . . . . . . . . . . . . Recycler 15 | 1 1 . 1 . 4 . . . . . . . . . . 1 . . . . . 3 . . . . . . . . . 1 . 3 . Minesweeper 5 | . . . . . . . . . . . 2 . . . . . . 1 1 . . . 1 . . . . . . . . . . . . Mechanic 8 | . . . . . 1 . . . . . 1 . . . . . 1 . . . . . . . . . . . . . . . . 5 . Operator 7 | . 1 . . . 1 1 . . . . . . . . 1 . . . . . . 1 . . . . . 2 . . . . . . . Drone 5 | . . . . . . . . . . . . . . . . . . . . . 2 . . . . 2 . . . . . . . 1 . Turret 2 | . . 2 . . . . . . . . . . . . . . . . . . . . . . . . . . . . . . . . . Watcher 32 | . 3 . 5 . 3 . . . . . . 2 1 1 . 4 1 . . . . . . . . . . 1 . . 1 2 5 3 . Swarmer 53 | . 6 4 6 4 2 . . 4 . . 6 . . 2 . . 4 7 . . 1 . 1 1 . . . 4 . . . . . 1 . Saboteur 5 | . . . . . . . . . . . . . . . . . . . . . 1 . . . . . . . . . . . . 4 . Grunt 156 | . 4 . 9 13 12 3 3 4 . . 6 . 5 . . 8 7 12 1 . 7 12 2 2 1 . . . . . . 4 . 41 . Brawler 15 | . . . 2 1 2 . . . . . 1 . . . . 1 . 1 . . 1 1 . . 1 . . . . . . . . 4 . Duelist 29 | . . . . 1 2 . 1 . . . 2 . 2 . . 1 1 1 . . 2 1 . . . . . 5 . . . . . 10 . Protector 8 | . . . . . 1 . . . . . . . . . . 1 . . . . . . . . . . . 1 . . . . . 5 . Researcher 2 | . . . . . . . . . . . . . . . . . . . . . . . . . . . . . . . . 2 . . . Sentry 49 | . . . 6 4 4 3 . . . . 2 1 4 . 2 3 6 3 1 . 2 3 1 1 . 1 . . . . . 1 1 . . Specialist 3 | . . . . 1 . . . . . . . . . . . 2 . . . . . . . . . . . . . . . . . . . Hunter 36 | . . . 1 2 1 . . . . . . . 2 1 . . 5 2 1 . . 9 . . . 4 . 2 . . . 3 2 1 . Programmer 52 | . . . . . . . . . . . 1 . . . . . 6 . . . 1 8 3 . . . . 6 . . 3 13 1 10 . Heavy 1 | . . . . . . . . . . . . . . . . . . . . . . 1 . . . . . . . . . . . . . Behemoth 7 | . . . . . . . . . . . 1 . . . . . . . 1 . 1 1 1 . . 1 . . . . . 1 . . . Cetus Guard 5 | . . . . . . . . . . . . . . 5 . . . . . . . . . . . . . . . . . . . . . S7 Guard 1 | . . . . . . . . . . . . . . . . . . . . . . . . . . . . . . . . 1 . . . M Guard 2 | . . . . . . . . . . . . . . . . . . . . . . . . . . . . . . . . . . 2 . M Shell/Atk 1 | . . . . . . . . . . . . . . . . . . . . . . . . . . . . . . . . . . 1 . Enhanced Grunt 7 | . . . . . . . . . . 2 . . . . . . . . . . . . . . . . . . . . . . . . 5 Combat Programmer 2 | . . . . . . . . . . . . . . . . . . . . . . . . . . . . . . . . . . 2 . Investigator 2 | . . . . . . . . . . . . . . . . . . . . . . . . . . . . . . . . . . 2 . Striker 2 | . . . . . . . . . . . . . . . . . . . . . . . . . . . . . . . . . . 2 . Executioner 10 | . . . . . . . . . . . . . . . . . . . . . . . . . 1 . . . . . . 4 . 5 . Alpha 7 1 | . . . . . . . . . . . . . . . . . . . . . . . . . . . . . . . . . . 1 . Fortress 1 | . . . . . . . . . . . . . . . . . . . . . . . . . . . . . . . 1 . . . . Subdweller 9 | . . 9 . . . . . . . . . . . . . . . . . . . . . . . . . . . . . . . . . Z-Light 4 | . . . . . . . . . . 4 . . . . . . . . . . . . . . . . . . . . . . . . . Decomposer 3 | . . . . . . . . 1 . . . . . . . . . 2 . . . . . . . . . . . . . . . . . Packrat 5 | . . . . . . . . . . . 1 . . . . . . . 3 . . . 1 . . . . . . . . . . . . Thief 1 | . . . . . . . 1 . . . . . . . . . . . . . . . . . . . . . . . . . . . . Assembler 2 | . . . . . . . . . . 2 . . . . . . . . . . . . . . . . . . . . . . . . . Assembled 39 | . . . . . . . . . . 39 . . . . . . . . . . . . . . . . . . . . . . . . . Golem 3 | . . . . . . . . . . 3 . . . . . . . . . . . . . . . . . . . . . . . . . Savage 1 | . . . . . . . . . . . . . 1 . . . . . . . . . . . . . . . . . . . . . . Best Kill Streak 38 | 2 3 6 4 6 13 2 3 4 . 38 10 1 4 4 2 6 8 10 2 . 7 5 2 3 2 3 . 4 . . 3 4 6 34 6 Combat Bots Only 35 | . 3 4 4 6 9 2 3 4 . 35 10 1 4 3 1 6 6 10 2 . 7 4 2 3 2 3 . 4 . . 3 4 4 28 6 Max Kills in Single Turn 21 | 1 2 1 2 3 3 1 2 2 . 21 4 1 1 2 1 2 2 2 1 . 2 3 1 1 1 1 . 1 . . 1 1 2 4 1 Gunslinging 1 | . . . . . . . . . . . . . . . . . . . . . . . . . . . . . . . . . . 1 . Exploded 21 | . . . . 3 1 . 2 2 . 21 4 . . . . 1 . . . . . 1 . . . . . . . . . . . . . Melee 1 | . . . . . . . . . . . . . . . . . . . . . . . . . . . . . . . . . . 1 . Uniques/NPCs Destroyed 6 | . . . . . . . . . . 1 . . . . . . . . . . . . . . . . . . . . . . . 2 3 Z-Imprinter (-7/Deep Caves) MAIN.C Shell (-1/Command) MAIN.C (-1/Command) A8 (-1/Access_0) A6 (-1/Access_0) Architect (-1/Access_0) Combat | -11 -10 -10 -8 -8 -8 -7 -7 -7 -7 -7 -6 -6 -6 -6 -6 -6 -5 -5 -5 -5 -4 -4 -4 -4 -4 -3 -3 -3 -3 -2 -2 -2 -1 -1 -1 -------- Run | Yrd Mat Sub Mat Gar Mat Fac Low Low Zio Dee Pro Fac Ext Cet Arc Hub Fac Upp Upp Zhi Pro Fac Upp Upp War Pro Res Arm Lab Res Qua Sec Acc Com Ac0 Hostile Shots Fired 3104 | . 23 106 136 79 82 47 4 20 . 63 93 9 67 41 . 120 142 61 13 . 98 308 52 11 102 97 . 99 . . 4 199 56 666 306 Missed 1066 | . 8 39 46 35 20 26 3 1 . 14 33 5 29 12 . 35 37 14 4 . 30 100 12 3 46 34 . 38 . . . 61 21 260 100 Damage Taken 25819 | . 173 1061 1254 639 981 498 1 268 . 947 613 10 335 652 53 2086 1979 731 88 . 1167 3768 424 61 441 555 . 563 . . 20 1459 201 3103 1688 Core 3307 | . 10 190 105 107 48 78 . . . 6 114 2 7 49 . 157 140 57 . . 50 164 52 7 47 . . 44 . . . 164 61 1099 549 Absorbed by Shields 9687 | . . . 20 20 . . . . . 295 520 12 167 . . . . 38 94 . 309 355 389 65 459 589 . 508 . . 20 1220 223 2781 1603 Reduced by Siege Mode 356 | . . . . . . . . . . . . . . . . . . 4 2 . 151 91 . . . 16 . 10 . . . 82 . . . Redirected to Shielding 170 | . . . 16 . . . . . . 154 . . . . . . . . . . . . . . . . . . . . . . . . . Ignored by Resistances 14237 | . . . . . . . . . . 221 226 5 103 111 . . 118 158 36 . 301 667 158 28 191 234 . 220 . . 8 734 500 6620 3598 Regen/Repaired (Parts) 3717 | . . . 446 . 548 . . . . . . . 28 173 . 104 1290 148 . . 67 285 73 . 46 73 . 46 . . 10 380 . . . Core Remaining (%) 61 | 100 . 20 . . 52 . . . . . 71 . . . . 74 . . . . 75 . . . . 76 . . 96 . . 39 . . 13 Volleys Fired 1594 | 5 39 46 92 63 61 25 11 22 1 49 36 6 56 23 9 56 66 63 10 . 44 134 29 9 22 27 9 85 4 9 21 171 32 193 66 Largest 3 | 2 2 2 2 2 2 2 2 2 1 2 2 2 2 2 2 2 2 2 2 . 2 2 2 2 2 2 2 2 1 1 1 2 3 3 3 Hottest 300 | 40 100 119 79 69 96 96 96 96 48 138 50 50 50 50 50 64 50 50 50 . 50 50 50 50 65 50 50 50 25 120 120 200 300 300 300 Shots Fired 2947 | 10 71 87 181 97 119 43 18 34 1 87 57 10 91 46 18 109 126 114 20 . 72 229 40 18 36 51 11 121 5 9 21 177 67 559 192 Gun 991 | 10 21 21 1 41 35 . . . . 8 . . . . . . . . . . . 12 . . 11 . . . . . . 13 67 559 192 Cannon 1895 | . 48 66 180 46 81 43 15 28 1 55 48 10 91 46 18 105 126 114 20 . 72 217 40 18 25 51 11 121 5 9 21 164 . . . Launcher 53 | . . . . 10 3 . 3 6 . 18 9 . . . . 4 . . . . . . . . . . . . . . . . . . . Special 8 | . 2 . . . . . . . . 6 . . . . . . . . . . . . . . . . . . . . . . . . . Kinetic 668 | 10 69 65 181 97 119 43 18 34 1 19 . . . . . . . . . . . 12 . . . . . . . . . . . . . Thermal 1366 | . 2 22 . . . . . . . 10 48 10 91 46 18 105 126 114 20 . 72 217 40 18 25 51 11 121 5 9 21 164 . . . Explosive 37 | . . . . . . . . . . 24 9 . . . . 4 . . . . . . . . . . . . . . . . . . . Electromagnetic 26 | . . . . . . . . . . 26 . . . . . . . . . . . . . . . . . . . . . . . . . Slashing 831 | . . . . . . . . . . . . . . . . . . . . . . . . . . . . . . . . 13 67 559 192 Entropic 11 | . . . . . . . . . . . . . . . . . . . . . . . . . 11 . . . . . . . . . . Phasic 8 | . . . . . . . . . . 8 . . . . . . . . . . . . . . . . . . . . . . . . . Robot Hit Streak 46 | 2 14 12 16 27 13 15 8 8 . 24 11 6 14 14 11 45 15 21 9 . 44 46 11 14 17 12 . 20 . . 5 29 9 30 26 Robot Miss Streak 9 | 1 2 4 4 1 2 1 2 1 . 2 1 2 2 3 1 3 3 2 1 . 2 4 1 2 1 3 . 3 . . 4 2 4 9 2 Penetration Max 1 | . . . . . 1 . . 1 . . . . . . . . . . . . . . . . . . . . . . . . 1 1 1 Secondary Targets 37 | . . . . . . . . . . . . . . . . . . . . . . . . . . . . . . . . . . 36 1 Max Gunslinging Chain 2 | . . . . . . . . . . . . . . . . . . . . . . . . . . . . . . . . . . 2 1 Capacitor 241 | . . . . . . . . . . . . . . . . . . . . . . . . . . . . 42 5 9 21 164 . . . Shots Hit Robots 1980 | 6 44 62 131 67 83 30 13 17 . 59 44 4 49 33 15 80 92 65 14 . 45 177 29 16 18 37 . 77 . . 5 118 23 374 153 Core Hits 1075 | 4 19 20 50 54 56 12 7 12 . 94 40 4 21 19 5 57 42 37 7 . 22 84 10 5 8 11 . 35 . . 5 45 14 215 61 Critical Kills 5 | . . . . . 1 . . . . . . . . . . . . . . . . . . . . . . . . . 1 3 . . . Critical Parts Destroyed . | . . . . . . . . . . . . . . . . . . . . . . . . . . . . . . . . . . . . Critical Strikes 75 | . 1 3 12 1 5 5 . 4 . 2 . . . . . . . . . . . . . . . . . . . . 1 3 . 35 3 Meltdown 4 | . . . . . . . . . . . . . . . . . . . . . . . . . . . . . . . 1 3 . . . Destroy 2 | . . 1 . . 1 . . . . . . . . . . . . . . . . . . . . . . . . . . . . . . Blast 31 | . 1 2 12 1 4 5 . 4 . 2 . . . . . . . . . . . . . . . . . . . . . . . . . Sever 38 | . . . . . . . . . . . . . . . . . . . . . . . . . . . . . . . . . . 35 3 Melee Attacks 23 | . . 2 2 . . . . . . . 12 . . . . . . . 1 . 1 1 1 . . 2 . . . . . 1 . . . Impact 2 | . . . 2 . . . . . . . . . . . . . . . . . . . . . . . . . . . . . . . . Slashing 2 | . . 2 . . . . . . . . . . . . . . . . . . . . . . . . . . . . . . . . . Piercing 19 | . . . . . . . . . . . 12 . . . . . . . 1 . 1 1 1 . . 2 . . . . . 1 . . . Sneak Attacks 1 | . . . . . . . . . . . . . . . . . . . . . . 1 . . . . . . . . . . . . . Combat Hostiles 1 | . . . . . . . . . . . . . . . . . . . . . . 1 . . . . . . . . . . . . . Follow-up Attacks . | . . . . . . . . . . . . . . . . . . . . . . . . . . . . . . . . . . . . Damage Inflicted 103841 | 67 683 1269 2796 2486 2707 838 600 1144 . 5221 3023 291 2512 1788 573 4466 4659 3258 657 . 2368 9288 1417 737 955 1604 . 3645 . . 325 5738 1629 29592 7505 Guns 41225 | 67 217 353 20 493 454 . . . . 36 . . . . . . . . . . . 209 . . 517 . . . . . . 375 1629 29413 7442 Cannons 52146 | . 466 847 2776 672 1583 838 311 444 . 1177 1391 216 2512 1788 573 3740 4659 3258 657 . 2368 8365 1417 737 438 1604 . 3645 . . 325 5339 . . . Explosions 9775 | . . . . 1321 670 . 289 700 . 3889 1402 75 . . . 726 . . . . . 703 . . . . . . . . . . . . . Melee 299 | . . 69 . . . . . . . . 230 . . . . . . . . . . . . . . . . . . . . . . . . Ramming 277 | . . . . . . . . . . . . . . . . . . . . . . 11 . . . . . . . . . 24 . 179 63 Kinetic 12863 | 67 683 886 2796 2486 2707 838 600 1144 . 447 . . . . . . . . . . . 209 . . . . . . . . . . . . . Thermal 44240 | . . 314 . . . . . . . 305 1391 216 2512 1788 573 3740 4659 3258 657 . 2368 8954 1417 737 438 1604 . 3645 . . 325 5339 . . . Explosive 6092 | . . . . . . . . . . 3889 1402 75 . . . 726 . . . . . . . . . . . . . . . . . . . Electromagnetic 539 | . . . . . . . . . . 425 . . . . . . . . . . . 114 . . . . . . . . . . . . . Impact . | . . . . . . . . . . . . . . . . . . . . . . . . . . . . . . . . . . . . Slashing 39047 | . . 69 . . . . . . . 119 . . . . . . . . . . . . . . . . . . . . . 375 1629 29413 7442 Piercing 230 | . . . . . . . . . . . 230 . . . . . . . . . . . . . . . . . . . . . . . . Entropic 517 | . . . . . . . . . . . . . . . . . . . . . . . . . 517 . . . . . . . . . . Phasic 36 | . . . . . . . . . . 36 . . . . . . . . . . . . . . . . . . . . . . . . . Highest Corruption 14 | . . . . 1 4 . . . . 4 . . . . . 14 1 . . . . 4 2 . . . . 1 1 . . 7 . 2 3 Average Corruption 2 | . . . . 1 2 . . . . 1 . . . . . 3 1 . . . . 1 1 . . . . 1 1 . . 5 . 1 2 Corruption Purged 18 | . . . . 1 4 . . . . 4 . . . . . . 1 . . . . 4 2 . . . . . . . . . . 2 . Corruption Blocked . | . . . . . . . . . . . . . . . . . . . . . . . . . . . . . . . . . . . . Effects 88 | . . . . 3 . . . . . 3 . . . . . 2 . . . . . 15 10 . . . . 5 4 . . 42 . 4 . Message Errors 25 | . . . . 1 . . . . . . . . . . . . . . . . . 2 4 . . . . 3 1 . . 13 . 1 . Matter Fused 21 | . . . . . . . . . . 2 . . . . . . . . . . . 6 3 . . . . 1 1 . . 7 . 1 . Heat Flow Errors 10 | . . . . . . . . . . . . . . . . 1 . . . . . 2 1 . . . . . . . . 5 . 1 . Energy Discharges 6 | . . . . 1 . . . . . . . . . . . 1 . . . . . 2 . . . . . . . . . 2 . . . Parts Rejected 1 | . . . . . . . . . . . . . . . . . . . . . . . . . . . . . . . . 1 . . . Parts Fused 3 | . . . . . . . . . . . . . . . . . . . . . . . . . . . . . . . . 3 . . . Data Loss (minor) 13 | . . . . 1 . . . . . . . . . . . . . . . . . 3 2 . . . . . 1 . . 5 . 1 . Data Loss (major) 2 | . . . . . . . . . . . . . . . . . . . . . . . . . . . . . . . . 2 . . . Misfires 5 | . . . . . . . . . . 1 . . . . . . . . . . . . . . . . . . 1 . . 3 . . . Weapon Failures 2 | . . . . . . . . . . . . . . . . . . . . . . . . . . . . 1 . . . 1 . . . Overload Shots . | . . . . . . . . . . . . . . . . . . . . . . . . . . . . . . . . . . . . Overflow Damage 2911 | . 2 . 77 91 38 . 47 58 . 148 221 2 65 45 . 165 191 141 160 . 68 598 112 67 . 93 . 158 . . . 239 . 125 . Projectiles 2422 | . 2 . 77 . 38 . 38 43 . 46 168 2 65 45 . 158 191 141 160 . 68 511 112 67 . 93 . 158 . . . 239 . . . Explosions 364 | . . . . 91 . . 9 15 . 102 53 . . . . 7 . . . . . 87 . . . . . . . . . . . . . Melee 125 | . . . . . . . . . . . . . . . . . . . . . . . . . . . . . . . . . . 125 . Knockbacks 65 | . 10 8 18 3 9 3 8 4 . 1 . . . . . . . . . . . . . . . . . . . . . . . 1 . Impact 1 | . . . . . . . . . . . . . . . . . . . . . . . . . . . . . . . . . . 1 . Kinetic 62 | . 8 8 18 3 9 3 8 4 . 1 . . . . . . . . . . . . . . . . . . . . . . . . . Secondary 2 | . 2 . . . . . . . . . . . . . . . . . . . . . . . . . . . . . . . . . . Self-Inflicted Damage 373 | . . . . 46 . . 1 . . 54 . . . . . 155 . . . . . 117 . . . . . . . . . . . . . Shots 9 | . . . . 1 . . 1 . . 1 . . . . . 4 . . . . . 2 . . . . . . . . . . . . . Rammed 1 | . 1 . . . . . . . . . . . . . . . . . . . . . . . . . . . . . . . . . . Targets Rammed 7 | . 1 . . . . . . . . . . . . . . . . . . . . 1 . . . . . . . . . 1 . 2 2 Kicked 6 | . . . . . . . . . . . . . . . . . . . . . . 1 . . . . . . . . . 1 . 2 2 Crushed . | . . . . . . . . . . . . . . . . . . . . . . . . . . . . . . . . . . . . Highest Temperature 464 | . 45 72 314 242 171 2 204 99 457 464 5 . . 1 60 279 1 2 . . . 236 89 . . 73 . . . 130 350 358 . 88 . Average Temperature 73 | . 10 37 65 48 32 2 87 27 154 111 2 . . 1 25 95 1 1 . . . 96 89 . . 73 . . . 59 100 113 . 15 . Received Heat Transfer 4529 | . 66 216 422 210 513 33 . 36 . 158 186 2 89 27 . 219 216 169 10 . 266 583 55 31 138 190 . 13 . . . 65 49 567 . Effects 7 | . . . . . . . . . 2 3 . . . . . 2 . . . . . . . . . . . . . . . . . . . Shutdowns 3 | . . . . . . . . . 2 1 . . . . . . . . . . . . . . . . . . . . . . . . . Interference 2 | . . . . . . . . . . . . . . . . 2 . . . . . . . . . . . . . . . . . . . Matter Decay 1 | . . . . . . . . . . 1 . . . . . . . . . . . . . . . . . . . . . . . . . Damage (major) 1 | . . . . . . . . . . 1 . . . . . . . . . . . . . . . . . . . . . . . . . Siege Activations 27 | . . . . . . . . . . . . . . . . . . 1 1 . 3 3 . . . 2 . 3 . . 2 12 . . . Total Turns 745 | . . . . . . . . . . . . . . . . . . 161 5 . 170 78 . . . 83 . 37 . . 33 178 . . . Longest Duration 161 | . . . . . . . . . . . . . . . . . . 161 5 . 76 33 . . . 55 . 21 . . 25 40 . . . Robots Corrupted 3 | . . . . . . . . . . 3 . . . . . . . . . . . . . . . . . . . . . . . . . Combat Hostiles 2 | . . . . . . . . . . 2 . . . . . . . . . . . . . . . . . . . . . . . . . Parts Fried 8 | . . . . . . . . . . 2 . . 3 1 . . . . . . . . . . . . . . . . . . . 2 . Impact Corruptions 4 | . . . . . . . . . . . . . . . . . . . . . . . . . . . . . . . . . . 4 . Robots Melted 7 | . . . . . . . . . . . . . . 2 . . . 1 . . . . . . . . . . . . 1 3 . . . Combat Hostiles 6 | . . . . . . . . . . . . . . 2 . . . 1 . . . . . . . . . . . . 1 2 . . . Parts Melted 42 | . . . . . . . . . . . . . . 2 . . 1 4 1 . 1 6 1 1 . 1 . 6 . . 2 16 . . . Heat Transferred 25185 | . . 407 . . . . . . . 150 775 125 1350 975 325 1973 2375 1800 325 . 1150 4775 700 400 173 875 . 1859 . . 307 4366 . . . Parts Sabotaged . | . . . . . . . . . . . . . . . . . . . . . . . . . . . . . . . . . . . . Parts Stolen 2 | . . . . . . . 1 1 . . . . . . . . . . . . . . . . . . . . . . . . . . . Parts Stripped . | . . . . . . . . . . . . . . . . . . . . . . . . . . . . . . . . . . . . Power Chain Reactions 1 | . . . . . . . . . . . . . . . . . . . . . . 1 . . . . . . . . . . . . . Alert | -11 -10 -10 -8 -8 -8 -7 -7 -7 -7 -7 -6 -6 -6 -6 -6 -6 -5 -5 -5 -5 -4 -4 -4 -4 -4 -3 -3 -3 -3 -2 -2 -2 -1 -1 -1 ------- Run | Yrd Mat Sub Mat Gar Mat Fac Low Low Zio Dee Pro Fac Ext Cet Arc Hub Fac Upp Upp Zhi Pro Fac Upp Upp War Pro Res Arm Lab Res Qua Sec Acc Com Ac0 Peak Influence 4059 | 15 210 . 384 1136 1221 679 . . . . . 163 853 822 461 692 678 . . . . 1036 . . . . 468 622 . 51 108 1600 2450 4059 . Initial 1436 | . 9 . 61 187 553 504 . . . . . . 79 477 248 . 317 . . . . 370 . . . . 450 140 . . . . 1100 1436 . Average 453 | 4 97 . 216 709 757 541 . . . . . 53 475 624 105 365 337 . . . . 568 . . . . 425 320 . 33 55 276 1897 2132 . Maximum Alert Level 5 | . 1 . 1 4 4 2 . . . . . . 3 3 2 2 2 . . . . 3 . . . . 2 2 . . . 5 5 5 . Low Security (%) 30 | 100 94 . 44 2 . . . . . . . 100 19 . 74 21 13 . . . . 1 . . . . . 30 . 100 100 21 . . . Level 1 23 | . 5 . 55 15 . . . . . . . . 11 . 14 38 49 . . . . 30 . . . . 16 34 . . . 68 . . . Level 2 24 | . . . . 37 47 100 . . . . . . 56 71 11 39 36 . . . . 41 . . . . 83 34 . . . 9 . . . Level 3 6 | . . . . 19 39 . . . . . . . 12 28 . . . . . . . 26 . . . . . . . . . . 1 . . Level 4 4 | . . . . 23 12 . . . . . . . . . . . . . . . . . . . . . . . . . . . 12 16 . Level 5 7 | . . . . . . . . . . . . . . . . . . . . . . . . . . . . . . . . . . 62 . High Security 2 | . . . . . . . . . . . . . . . . . . . . . . . . . . . . . . . . . . 21 . Max Security 1 | . . . . . . . . . . . . . . . . . . . . . . . . . . . . . . . . . 86 . . Squads Dispatched 115 | . . . 1 . 4 4 . . . . 1 . 6 . . 9 11 . . . 1 5 . . . . 2 4 . 2 3 8 30 24 . Investigation 8 | . . . . . . 2 . . . . . . 3 . . 2 . . . . . 1 . . . . . . . . . . . . . Extermination 17 | . . . . . . . . . . . . . . . . 1 3 . . . . 2 . . . . . 2 . . 2 6 . 1 . Reinforcement 27 | . . . . . 2 2 . . . . . . 2 . . 3 3 . . . . 2 . . . . 2 2 . 2 1 2 4 . . Assault 52 | . . . . . 2 . . . . . 1 . 1 . . 2 2 . . . 1 . . . . . . . . . . . 20 23 . Garrison 11 | . . . 1 . . . . . . . . . . . . 1 3 . . . . . . . . . . . . . . . 6 . . Intercept . | . . . . . . . . . . . . . . . . . . . . . . . . . . . . . . . . . . . . Searches Triggered 1 | . . . . . . . . . . . . . . . . . . . . . . 1 . . . . . . . . . . . . . Construction Impeded 2 | . . . . . . . . . . . . . . . . 1 . . . . . . . . . . . . . . . . 1 . . Haulers Reinforced 6 | . . . . . . 1 . . . . . . . . . . 2 . . . . 1 . . . . . . . 2 . . . . . Active Scanning Responses . | . . . . . . . . . . . . . . . . . . . . . . . . . . . . . . . . . . . . Cargo Convoy Interrupts . | . . . . . . . . . . . . . . . . . . . . . . . . . . . . . . . . . . . . Stealth | -11 -10 -10 -8 -8 -8 -7 -7 -7 -7 -7 -6 -6 -6 -6 -6 -6 -5 -5 -5 -5 -4 -4 -4 -4 -4 -3 -3 -3 -3 -2 -2 -2 -1 -1 -1 --------- Run | Yrd Mat Sub Mat Gar Mat Fac Low Low Zio Dee Pro Fac Ext Cet Arc Hub Fac Upp Upp Zhi Pro Fac Upp Upp War Pro Res Arm Lab Res Qua Sec Acc Com Ac0 Distress Signals 52 | . 1 . 3 . 2 . . . . . . . 1 2 . 1 1 . . . . 2 . . . . 2 3 . 8 . 2 1 23 . Communications Jammed . | . . . . . . . . . . . . . . . . . . . . . . . . . . . . . . . . . . . . Distress Signals . | . . . . . . . . . . . . . . . . . . . . . . . . . . . . . . . . . . . . Times Spotted 844 | . 20 38 32 25 31 7 5 11 . 62 20 3 36 15 3 34 32 17 5 . 16 45 7 3 16 10 1 28 . . 7 41 69 191 14 Peak Tracking Total 37 | . 5 6 4 6 6 2 4 4 . 37 10 1 5 5 1 5 7 10 3 . 7 6 3 2 13 2 1 7 . . 2 9 28 34 4 Tactical Retreats 47 | . . 3 2 . 1 . . 4 . 4 . . 1 . . . . . . . . . . . 1 . . 2 . . . . 11 18 . Traps | -11 -10 -10 -8 -8 -8 -7 -7 -7 -7 -7 -6 -6 -6 -6 -6 -6 -5 -5 -5 -5 -4 -4 -4 -4 -4 -3 -3 -3 -3 -2 -2 -2 -1 -1 -1 ------- Run | Yrd Mat Sub Mat Gar Mat Fac Low Low Zio Dee Pro Fac Ext Cet Arc Hub Fac Upp Upp Zhi Pro Fac Upp Upp War Pro Res Arm Lab Res Qua Sec Acc Com Ac0 Traps Triggered 28 | . . 2 1 8 1 3 . . . . . . 5 . . 1 1 . . . . . . . . . . 1 . . . 2 2 1 . Indirectly . | . . . . . . . . . . . . . . . . . . . . . . . . . . . . . . . . . . . . Trap Hack Attempts . | . . . . . . . . . . . . . . . . . . . . . . . . . . . . . . . . . . . . Triggered . | . . . . . . . . . . . . . . . . . . . . . . . . . . . . . . . . . . . . Disarmed 1 | . . . 1 . . . . . . . . . . . . . . . . . . . . . . . . . . . . . . . . Reprogrammed . | . . . . . . . . . . . . . . . . . . . . . . . . . . . . . . . . . . . . Reused . | . . . . . . . . . . . . . . . . . . . . . . . . . . . . . . . . . . . . Traps Extracted . | . . . . . . . . . . . . . . . . . . . . . . . . . . . . . . . . . . . . Installed . | . . . . . . . . . . . . . . . . . . . . . . . . . . . . . . . . . . . . Triggered 18 | . . . . . . . . 1 . . 2 . . . . . . . . . . . 1 2 11 . . . . . . . . 1 . Machines | -11 -10 -10 -8 -8 -8 -7 -7 -7 -7 -7 -6 -6 -6 -6 -6 -6 -5 -5 -5 -5 -4 -4 -4 -4 -4 -3 -3 -3 -3 -2 -2 -2 -1 -1 -1 ---------- Run | Yrd Mat Sub Mat Gar Mat Fac Low Low Zio Dee Pro Fac Ext Cet Arc Hub Fac Upp Upp Zhi Pro Fac Upp Upp War Pro Res Arm Lab Res Qua Sec Acc Com Ac0 Machines Disabled 99 | . . 4 1 5 3 . . . . 4 2 3 11 . 2 8 1 3 . . 2 12 . . 1 . . 7 2 . 3 10 3 8 4 Max in Single Turn 5 | . . 1 1 2 1 . . . . 1 2 2 1 . . 4 1 1 . . 1 5 . . 1 . . 1 1 . 1 1 1 2 1 Garrison Access 3 | . . . . . 1 . . . . . . . . . . 1 . . . . . 1 . . . . . . . . . . . . . Garrison Relay 2 | . . . . 2 . . . . . . . . . . . . . . . . . . . . . . . . . . . . . . . Network Hub 1 | . . . . . . . . . . . . . . . . 1 . . . . . . . . . . . . . . . . . . . Energy Cycler 1 | . . . . . . . . . . . . . . . . . . . . . . . . . . . . . . . . . 1 . . Machines Repaired . | . . . . . . . . . . . . . . . . . . . . . . . . . . . . . . . . . . . . Machines Dismantled . | . . . . . . . . . . . . . . . . . . . . . . . . . . . . . . . . . . . . Machines Sabotaged . | . . . . . . . . . . . . . . . . . . . . . . . . . . . . . . . . . . . . Overloaded Fab Kills . | . . . . . . . . . . . . . . . . . . . . . . . . . . . . . . . . . . . . Hacking | -11 -10 -10 -8 -8 -8 -7 -7 -7 -7 -7 -6 -6 -6 -6 -6 -6 -5 -5 -5 -5 -4 -4 -4 -4 -4 -3 -3 -3 -3 -2 -2 -2 -1 -1 -1 --------- Run | Yrd Mat Sub Mat Gar Mat Fac Low Low Zio Dee Pro Fac Ext Cet Arc Hub Fac Upp Upp Zhi Pro Fac Upp Upp War Pro Res Arm Lab Res Qua Sec Acc Com Ac0 Machines Accessed 114 | . 8 1 15 2 2 5 2 . . . . 3 10 . . 11 5 2 1 5 . 9 2 1 1 . 1 7 1 1 4 10 2 3 . Terminals 84 | . 8 . 10 2 1 3 . . . . . 3 10 . . 10 2 1 . . . 7 1 . . . 1 6 . 1 4 10 1 3 . Fabricators 2 | . . . . . . 1 . . . . . . . . . . . . . . . . . . . . . 1 . . . . . . . Repair Stations 6 | . . . 2 . 1 1 . . . . . . . . . . 2 . . . . . . . . . . . . . . . . . . Recycling Units 2 | . . . 1 . . . . . . . . . . . . . . . . . . 1 . . . . . . . . . . . . . Scanalyzers 1 | . . . 1 . . . . . . . . . . . . . . . . . . . . . . . . . . . . . . . . Garrison Access 5 | . . . 1 . . . . . . . . . . . . 1 1 . . . . 1 . . . . . . . . . . 1 . . Total Hacks 325 | . 22 9 57 4 9 15 2 . . . . 6 24 . . 26 22 9 1 18 . 29 2 1 1 . 2 20 5 2 9 18 3 9 . Successful 156 | . 11 9 35 1 6 5 2 . . . . 2 4 . . 11 7 9 1 18 . 7 2 1 1 . . 7 5 1 2 5 1 3 . Failed 167 | . 10 . 21 3 3 10 . . . . . 4 20 . . 15 15 . . . . 22 . . . . 2 13 . 1 7 13 2 6 . Catastrophic 36 | . 1 . . . . 3 . . . . . 1 3 . . 7 4 . . . . 6 . . . . . 4 . 1 1 4 . 1 . Database Lockouts 2 | . 1 . 1 . . . . . . . . . . . . . . . . . . . . . . . . . . . . . . . . Manual 98 | . 8 . 14 . 1 4 . . 5 . . 2 3 1 . 5 9 . . . . 13 . . . . 2 10 . . 6 9 3 3 . Terminals 231 | . 22 . 35 4 2 9 . . . . . 6 24 . . 25 12 8 . . . 24 1 . . . 2 17 . 2 9 18 2 9 . Fabricators 6 | . . . . . . 3 . . . . . . . . . . . . . . . . . . . . . 3 . . . . . . . Repair Stations 24 | . . . 9 . 7 3 . . . . . . . . . . 5 . . . . . . . . . . . . . . . . . . Recycling Units 6 | . . . 2 . . . . . . . . . . . . . . . . . . 4 . . . . . . . . . . . . . Scanalyzers 10 | . . . 10 . . . . . . . . . . . . . . . . . . . . . . . . . . . . . . . . Garrison Access 9 | . . . 1 . . . . . . . . . . . . 1 5 . . . . 1 . . . . . . . . . . 1 . . Terminal Hacks 112 | . 10 9 15 1 1 2 2 . . . . 1 4 . . 10 4 9 1 18 . 5 2 1 1 . . 3 5 1 1 5 . 1 . Record 28 | . . 8 . . . . . . . . . . . . . . . 8 . 6 . . 1 . . . . . 5 . . . . . . Part Schematic 5 | . . . . . . . . . . . . . . . . . . . . 4 . . . . . . . 1 . . . . . . . Robot Analysis 14 | . 1 . 4 . . . . . . . . . . . . . 2 . . 4 . 3 . . . . . . . . . . . . . Prototype ID Bank 12 | . 2 . 1 . . 1 . . . . . . 2 . . 2 . . . 4 . . . . . . . . . . . . . . . Open Door 17 | . . . . 1 . . 2 . . . . 1 2 . . . . 1 1 . . . 1 1 1 . . 1 . . . 5 . . . Branch Access Points 5 | . . . 1 . . 1 . . . . . . . . . . 1 . . . . 1 . . . . . . . 1 . . . . . Emergency Access Points 1 | . . . 1 . . . . . . . . . . . . . . . . . . . . . . . . . . . . . . . . Terminal Index 1 | . . . . . . . . . . . . . . . . 1 . . . . . . . . . . . . . . . . . . . Scanalyzer Index 1 | . . . 1 . . . . . . . . . . . . . . . . . . . . . . . . . . . . . . . . Alert Level 1 | . . . . . . . . . . . . . . . . 1 . . . . . . . . . . . . . . . . . . . Unreport Threat 3 | . . . . . . . . . . . . . . . . 3 . . . . . . . . . . . . . . . . . . . Locate Traps 12 | . 4 . 2 . 1 . . . . . . . . . . 1 1 . . . . . . . . . . 1 . . 1 . . 1 . Disarm Traps 1 | . . . 1 . . . . . . . . . . . . . . . . . . . . . . . . . . . . . . . . Hauler Manifests 2 | . 1 . 1 . . . . . . . . . . . . . . . . . . . . . . . . . . . . . . . . Registered Components 1 | . . . . . . . . . . . . . . . . . . . . . . 1 . . . . . . . . . . . . . Zone Layout 7 | . 2 . 3 . . . . . . . . . . . . 2 . . . . . . . . . . . . . . . . . . . Derelict Proto ID Bank 1 | . . 1 . . . . . . . . . . . . . . . . . . . . . . . . . . . . . . . . . Fabricator Hacks 3 | . . . . . . 1 . . . . . . . . . . . . . . . . . . . . . 2 . . . . . . . Network Status 2 | . . . . . . 1 . . . . . . . . . . . . . . . . . . . . . 1 . . . . . . . Load Schematic 1 | . . . . . . . . . . . . . . . . . . . . . . . . . . . . 1 . . . . . . . Repair Station Hacks 16 | . . . 8 . 4 1 . . . . . . . . . . 3 . . . . . . . . . . . . . . . . . . Scan Component 9 | . . . 4 . 2 1 . . . . . . . . . . 2 . . . . . . . . . . . . . . . . . . Repair 7 | . . . 4 . 2 . . . . . . . . . . . 1 . . . . . . . . . . . . . . . . . . Recycling Unit Hacks . | . . . . . . . . . . . . . . . . . . . . . . . . . . . . . . . . . . . . Scanalyzer 7 | . . . 7 . . . . . . . . . . . . . . . . . . . . . . . . . . . . . . . . Insert Component 4 | . . . 4 . . . . . . . . . . . . . . . . . . . . . . . . . . . . . . . . Analyze 3 | . . . 3 . . . . . . . . . . . . . . . . . . . . . . . . . . . . . . . . Garrison Access Hacks 2 | . . . 1 . . . . . . . . . . . . . . . . . . 1 . . . . . . . . . . . . . Unlock Access 1 | . . . 1 . . . . . . . . . . . . . . . . . . . . . . . . . . . . . . . . Seal Access 1 | . . . . . . . . . . . . . . . . . . . . . . 1 . . . . . . . . . . . . . Unauthorized Hacks 16 | . 1 . 4 . 1 1 . . . . . 1 . . . 1 . . . . . 1 . . . . . 2 . . 1 . 1 2 . Terminals 15 | . 1 . 4 . 1 1 . . . . . 1 . . . 1 . . . . . 1 . . . . . 2 . . 1 . . 2 . Botnet 10 | . 1 . 1 . 1 1 . . . . . 1 . . . 1 . . . . . 1 . . . . . 1 . . 1 . . 1 . Disrupt 3 | . . . 2 . . . . . . . . . . . . . . . . . . . . . . . . 1 . . . . . . . Operators 2 | . . . 1 . . . . . . . . . . . . . . . . . . . . . . . . . . . . . . 1 . Fabricators . | . . . . . . . . . . . . . . . . . . . . . . . . . . . . . . . . . . . . Repair Stations . | . . . . . . . . . . . . . . . . . . . . . . . . . . . . . . . . . . . . Recycling Units . | . . . . . . . . . . . . . . . . . . . . . . . . . . . . . . . . . . . . Scanalyzers . | . . . . . . . . . . . . . . . . . . . . . . . . . . . . . . . . . . . . Garrison Access 1 | . . . . . . . . . . . . . . . . . . . . . . . . . . . . . . . . . 1 . . Watchers 1 | . . . . . . . . . . . . . . . . . . . . . . . . . . . . . . . . . 1 . . Data Cores Recovered 2 | . 1 . . . . . . . . . . . . . . . . . . . . . . . . . . 1 . . . . . . . Used 2 | . 1 . . . . . . . . . . . . . . . . . . . . . . . . . . 1 . . . . . . . Hacking Detections 80 | . 5 . 12 1 2 5 . . . . . 2 10 1 . 10 4 . . . . 7 . . . . 1 5 . 1 4 5 2 3 . Full Trace Events 8 | . . . . 1 1 2 . . . . . . 3 . . . . . . . . 1 . . . . . . . . . . . . . Feedback Events 1 | . . . . 1 . . . . . . . . . . . . . . . . . . . . . . . . . . . . . . . Corruption 1 | . . . . 1 . . . . . . . . . . . . . . . . . . . . . . . . . . . . . . . Feedback Blocked . | . . . . . . . . . . . . . . . . . . . . . . . . . . . . . . . . . . . . Robot Schematics Acquired 6 | . . . . . . . . . 3 . . . . . . . . . . . . . . . . . . . . . 3 . . . . Robots Built . | . . . . . . . . . . . . . . . . . . . . . . . . . . . . . . . . . . . . Authchips . | . . . . . . . . . . . . . . . . . . . . . . . . . . . . . . . . . . . . Time . | . . . . . . . . . . . . . . . . . . . . . . . . . . . . . . . . . . . . Total Robot Build Rating . | . . . . . . . . . . . . . . . . . . . . . . . . . . . . . . . . . . . . Part Schematics Acquired 35 | . . . 3 . . . . . 16 . . . . . . . . . . 4 . . . . . . . 1 . . 3 8 . . . Parts Built . | . . . . . . . . . . . . . . . . . . . . . . . . . . . . . . . . . . . . Authchips . | . . . . . . . . . . . . . . . . . . . . . . . . . . . . . . . . . . . . Time . | . . . . . . . . . . . . . . . . . . . . . . . . . . . . . . . . . . . . Total Part Build Rating . | . . . . . . . . . . . . . . . . . . . . . . . . . . . . . . . . . . . . Parts Repaired 7 | . . . 4 . 2 . . . . . . . . . . . 1 . . . . . . . . . . . . . . . . . . Time 336 | . . . 152 . 76 . . . . . . . . . . . 108 . . . . . . . . . . . . . . . . . . Parts Recycled . | . . . . . . . . . . . . . . . . . . . . . . . . . . . . . . . . . . . . Recycled Matter . | . . . . . . . . . . . . . . . . . . . . . . . . . . . . . . . . . . . . Retrieved Matter . | . . . . . . . . . . . . . . . . . . . . . . . . . . . . . . . . . . . . Retrieved Components . | . . . . . . . . . . . . . . . . . . . . . . . . . . . . . . . . . . . . Parts Scanalyzed 3 | . . . 3 . . . . . . . . . . . . . . . . . . . . . . . . . . . . . . . . Part Schematics Acquired 3 | . . . 3 . . . . . . . . . . . . . . . . . . . . . . . . . . . . . . . . Parts Damaged . | . . . . . . . . . . . . . . . . . . . . . . . . . . . . . . . . . . . . Bothacking | -11 -10 -10 -8 -8 -8 -7 -7 -7 -7 -7 -6 -6 -6 -6 -6 -6 -5 -5 -5 -5 -4 -4 -4 -4 -4 -3 -3 -3 -3 -2 -2 -2 -1 -1 -1 ------------ Run | Yrd Mat Sub Mat Gar Mat Fac Low Low Zio Dee Pro Fac Ext Cet Arc Hub Fac Upp Upp Zhi Pro Fac Upp Upp War Pro Res Arm Lab Res Qua Sec Acc Com Ac0 Used RIF Installer . | . . . . . . . . . . . . . . . . . . . . . . . . . . . . . . . . . . . . Robots Hacked . | . . . . . . . . . . . . . . . . . . . . . . . . . . . . . . . . . . . . Non-combat . | . . . . . . . . . . . . . . . . . . . . . . . . . . . . . . . . . . . . Combat . | . . . . . . . . . . . . . . . . . . . . . . . . . . . . . . . . . . . . Robot Hacks Applied . | . . . . . . . . . . . . . . . . . . . . . . . . . . . . . . . . . . . . Relay Couplers Released 13 | . . . . 9 3 . . . . . . . . . . 1 . . . . . . . . . . . . . . . . . . . Machine Destruction 13 | . . . . 9 3 . . . . . . . . . . 1 . . . . . . . . . . . . . . . . . . . Fabnet Peak Effective % . | . . . . . . . . . . . . . . . . . . . . . . . . . . . . . . . . . . . . Robots Rewired 23 | . . . . . . . . . . . 2 . 14 . . . . . . . 2 . . . 5 . . . . . . . . . . Allies Hacked . | . . . . . . . . . . . . . . . . . . . . . . . . . . . . . . . . . . . . Hacks Repelled . | . . . . . . . . . . . . . . . . . . . . . . . . . . . . . . . . . . . . Allies | -11 -10 -10 -8 -8 -8 -7 -7 -7 -7 -7 -6 -6 -6 -6 -6 -6 -5 -5 -5 -5 -4 -4 -4 -4 -4 -3 -3 -3 -3 -2 -2 -2 -1 -1 -1 -------- Run | Yrd Mat Sub Mat Gar Mat Fac Low Low Zio Dee Pro Fac Ext Cet Arc Hub Fac Upp Upp Zhi Pro Fac Upp Upp War Pro Res Arm Lab Res Qua Sec Acc Com Ac0 Total Allies 176 | . . . . 1 . . . . 2 . 2 . 29 5 . . . . . . 2 . . . 5 . . 10 . . 5 . 65 50 . Largest Group 15 | . . . . 1 . . . . 2 2 2 . 15 7 5 4 . . . . 2 2 . . 5 . . 10 . . 1 . 15 13 . Highest-Rated Group 511 | . . . . 31 . . . . 192 192 49 . 511 480 480 384 . . . . 96 96 . . 285 . . 481 . . 83 . 213 184 . Highest-Rated Ally 159 | . . . . 31 . . . . 96 96 29 . 159 146 96 96 . . . . 48 48 . . 65 . . 58 . . 83 . 15 15 . Total Orders 2 | . . . . . . . . . . . . . . . . 2 . . . . . . . . . . . . . . . . . . . STAY 2 | . . . . . . . . . . . . . . . . 2 . . . . . . . . . . . . . . . . . . . Ally Attacks 694 | . . . . 4 . . . . . 57 1 . 178 61 33 52 . . . . . 14 . . 13 . . 36 . . . . 194 51 . Total Damage 18421 | . . . . 44 . . . . . 1852 . . 4239 1629 1295 2339 . . . . . 605 . . 461 . . 1048 . . . . 4109 800 . Kills 89 | . . . . . . . . . . 15 . . 29 8 2 14 . . . . . 1 . . 3 . . 6 . . . . 10 1 . Allies Corrupted 11 | . . . . . . . . . . 1 . . 1 . . . . . . . . . . . 1 . . . . . 5 . 3 . . Allies Melted 2 | . . . . . . . . . . . . . 1 . . . . . . . . . . . . . . . . 1 . . . . . Intel | -11 -10 -10 -8 -8 -8 -7 -7 -7 -7 -7 -6 -6 -6 -6 -6 -6 -5 -5 -5 -5 -4 -4 -4 -4 -4 -3 -3 -3 -3 -2 -2 -2 -1 -1 -1 ------- Run | Yrd Mat Sub Mat Gar Mat Fac Low Low Zio Dee Pro Fac Ext Cet Arc Hub Fac Upp Upp Zhi Pro Fac Upp Upp War Pro Res Arm Lab Res Qua Sec Acc Com Ac0 Robot Analysis Total 14 | . 1 . 4 . . . . . . . . . . . . . 2 . . 4 . 3 . . . . . . . . . . . . . Derelict Logs Recovered 14 | . . . . . . . 2 1 . . 2 . . . . . . 1 1 . 2 . 2 3 . . . . . . . . . . . Drone Launches . | . . . . . . . . . . . . . . . . . . . . . . . . . . . . . . . . . . . . Drone Recoveries . | . . . . . . . . . . . . . . . . . . . . . . . . . . . . . . . . . . . . Exploration | -11 -10 -10 -8 -8 -8 -7 -7 -7 -7 -7 -6 -6 -6 -6 -6 -6 -5 -5 -5 -5 -4 -4 -4 -4 -4 -3 -3 -3 -3 -2 -2 -2 -1 -1 -1 ------------- Run | Yrd Mat Sub Mat Gar Mat Fac Low Low Zio Dee Pro Fac Ext Cet Arc Hub Fac Upp Upp Zhi Pro Fac Upp Upp War Pro Res Arm Lab Res Qua Sec Acc Com Ac0 Turns Passed 61557 | 91 1020 2483 2478 1599 1215 822 1861 1817 1681 7766 3800 332 1589 438 3084 996 1612 3324 1388 523 2112 1414 3114 2169 1382 2582 477 959 548 456 840 2009 329 2959 288 Spaces Moved 27447 | 48 527 1215 1150 701 477 459 1127 1076 1029 1982 1333 136 665 160 63 466 458 1261 831 147 912 519 1000 1149 686 947 186 437 292 250 412 1130 774 3110 332 Core 18 | 17 . . . . . . . . . . . . . . . . . . . . . . . . . 1 . . . . . . . . . Treads 7412 | 31 527 264 . . . . . . . . . . . . 35 466 458 1261 831 147 912 234 . . . 1 . 417 292 250 412 874 . . . Legs 11480 | . . . . . . . . . . 435 1333 136 665 160 28 . . . . . . 285 1000 1149 686 945 186 20 . . . 249 774 3097 332 Wheels 8517 | . . 951 1150 701 477 459 1127 1076 1029 1547 . . . . . . . . . . . . . . . . . . . . . . . . . Hover . | . . . . . . . . . . . . . . . . . . . . . . . . . . . . . . . . . . . . Flight . | . . . . . . . . . . . . . . . . . . . . . . . . . . . . . . . . . . . . Fastest Speed 30 | 50 160 95 150 150 160 160 160 160 160 130 270 186 190 190 160 160 160 160 160 160 160 160 183 185 185 180 210 155 155 155 155 30 30 30 30 Average Speed 158 | 125 160 179 165 193 187 160 160 160 160 177 270 218 190 195 199 169 237 220 160 193 173 177 185 185 185 203 210 157 155 155 155 129 30 30 30 Slowest Speed 2200 | 160 160 215 215 205 245 160 160 160 160 270 270 270 190 210 300 240 240 240 160 240 240 240 186 185 185 2200 210 210 155 155 155 160 30 30 30 Overloaded Moves . | . . . . . . . . . . . . . . . . . . . . . . . . . . . . . . . . . . . . Propulsion Burnouts . | . . . . . . . . . . . . . . . . . . . . . . . . . . . . . . . . . . . . Robots Hopped . | . . . . . . . . . . . . . . . . . . . . . . . . . . . . . . . . . . . . Cave-ins Triggered . | . . . . . . . . . . . . . . . . . . . . . . . . . . . . . . . . . . . . Teleports 11 | . . . . . . . . . . . . . . . . . . . . . . . . . . . . . . . 4 5 . 1 1 Spacefolds 7 | . . . . . . . . . . . . . . . . . . . . . . . . . . . . . . . . 3 . 4 . Exploration Rate (%) 62 | 4 97 55 82 59 36 18 98 93 87 86 99 7 83 56 69 62 14 99 91 60 99 16 99 97 89 98 7 38 96 8 39 65 33 85 32 Regions Visited 35 Branch Regions 24 Pre-discovered Areas 8 | . . . . . . . 1 . 2 . . . . . . . . . 1 3 1 . . . . . . . . . . . . . . Known Exits Taken 21 | . . . 1 . . 1 1 1 . 1 1 1 1 1 1 1 1 1 . . 1 1 . . . 1 1 1 1 1 1 . . . . Unknown Exits Taken 13 | 1 1 1 . . 1 . . . 1 . . . . . . . . . 1 1 . . 1 1 1 . . . . . . 1 1 1 . Scrap Searched 45 | . . 14 . . . . 6 3 3 . 3 . . . . . . 4 1 . 1 . 4 2 . 4 . . . . . . . . . Spaces Dug 231 | . 2 . 5 . . 6 . 17 . 2 20 3 5 . . 1 1 15 . . 14 17 4 . 8 . 11 12 . 8 3 19 46 10 2 Terrain Destroyed 1541 | . 2 5 12 83 43 11 60 97 . 34 71 25 19 6 3 201 26 36 7 . 23 72 10 2 12 14 11 30 . 8 4 32 87 361 134 Melee 2 | . . . 2 . . . . . . . . . . . . . . . . . . . . . . . . . . . . . . . . Projectile 965 | . 2 5 10 . 20 11 2 13 . 8 17 4 19 6 3 16 26 36 7 . 23 39 10 2 12 14 11 30 . 8 4 32 80 361 134 AOE 574 | . . . . 83 23 . 58 84 . 26 54 21 . . . 185 . . . . . 33 . . . . . . . . . . 7 . . Terrain Rammed . | . . . . . . . . . . . . . . . . . . . . . . . . . . . . . . . . . . . . Walls Destroyed . | . . . . . . . . . . . . . . . . . . . . . . . . . . . . . . . . . . . . Machines Disabled . | . . . . . . . . . . . . . . . . . . . . . . . . . . . . . . . . . . . . Actions | -11 -10 -10 -8 -8 -8 -7 -7 -7 -7 -7 -6 -6 -6 -6 -6 -6 -5 -5 -5 -5 -4 -4 -4 -4 -4 -3 -3 -3 -3 -2 -2 -2 -1 -1 -1 --------- Run | Yrd Mat Sub Mat Gar Mat Fac Low Low Zio Dee Pro Fac Ext Cet Arc Hub Fac Upp Upp Zhi Pro Fac Upp Upp War Pro Res Arm Lab Res Qua Sec Acc Com Ac0 Total 43100 | 67 626 1421 1535 854 691 504 1165 1132 1066 6141 1449 160 896 245 3007 561 856 1695 865 389 1369 775 2230 1174 764 1553 261 625 394 329 611 1646 825 4808 411 Wait 12324 | 3 46 102 208 9 116 6 3 21 5 3965 8 12 20 29 2923 30 278 314 9 223 345 63 1133 9 . 525 63 41 59 8 142 211 2 1384 9 Move 27398 | 47 526 1214 1149 699 476 458 1126 1075 1028 1981 1332 135 664 159 62 465 457 1260 830 146 911 518 999 1148 685 946 185 436 291 249 411 1126 773 3100 331 Hop . | . . . . . . . . . . . . . . . . . . . . . . . . . . . . . . . . . . . . Pick Up 406 | 5 6 25 31 4 9 4 4 1 11 49 . 2 2 11 3 1 13 26 2 4 23 16 23 1 2 21 . 14 16 27 11 28 4 6 1 Fast Attach 135 | 7 . 1 8 . 5 2 5 1 2 10 . . . 3 1 . 1 1 . 4 2 6 3 . 6 3 . 2 1 2 4 20 1 33 1 Attach 80 | . . 6 9 1 2 3 . . 3 11 . . . 2 1 1 5 1 1 2 . 1 . . . . 1 5 3 2 6 11 1 2 . Detach 38 | . . . 1 . . . . . . 1 3 . . . . . 7 5 1 . 3 2 6 2 . 4 . 1 2 . . . . . . Swap 353 | . 7 13 15 11 7 3 7 11 4 27 14 4 8 3 . 7 18 10 9 . 14 19 9 4 2 9 3 23 3 5 8 49 8 19 . Drop 398 | . 1 9 20 3 15 3 9 1 12 48 . 1 1 15 8 1 11 15 2 10 11 14 27 1 9 16 . 16 15 27 8 29 4 35 1 Fire 1594 | 5 39 46 92 63 61 25 11 22 1 49 36 6 56 23 9 56 66 63 10 . 44 134 29 9 22 27 9 85 4 9 21 171 32 193 66 Melee 23 | . . 2 2 . . . . . . . 12 . . . . . . . 1 . 1 1 1 . . 2 . . . . . 1 . . . Ram . | . . . . . . . . . . . . . . . . . . . . . . . . . . . . . . . . . . . . Kick 5 | . . . . . . . . . . . . . . . . . . . . . . 1 . . . . . . . . . . . 2 2 Crush 1 | . 1 . . . . . . . . . . . . . . . . . . . . . . . . . . . . . . . . . . Escape Stasis 114 | . . . . 63 . . . . . . . . 25 . . . . . . . . . . . . . . . . . . . . 26 . Rewire 228 | . . . . 1 . . . . . . 44 . 120 . . . . . . . 15 . . . 38 . . 2 . . . . . 8 . Trap . | . . . . . . . . . . . . . . . . . . . . . . . . . . . . . . . . . . . . Miscellaneous 3 | . . 3 . . . . . . . . . . . . . . . . . . . . . . . . . . . . . . . . . Route ------- -11/Scrapyard -10/Materials (discovered 6 exits: [*Mat x3] / [*Min x2] / *Sub) -10/Subcaves (discovered 2 exits: *Mat / [*Rec]) -8/Materials (discovered 3 exits: *Fac x2 / Gar) -8/Garrison (discovered 2 exits: *Mat x2) -8/Materials -7/Factory (discovered 5 exits: *Fac / Sto x2 / *Low x2) -7/Lower Caves (discovered 2 exits: *Low / *Zio) -7/Lower Caves (discovered 2 exits: *Fac / *Zio) -7/Zion (discovered 2 exits: [*Dee] / [*Pro]) -7/Deep Caves -6/Proximity Caves -6/Factory -6/Extension (discovered 2 exits: *Fac / *Cet) -6/Cetus (discovered 2 exits: *Fac / *Arc) -6/Archives -6/Hub_04(d) (discovered 3 exits: *Fac x3) -5/Factory (discovered 3 exits: *Fac / *Upp x2) -5/Upper Caves -5/Upper Caves (discovered 2 exits: *Fac / *Zhi) -5/Zhirov -4/Proximity Caves -4/Factory (discovered 2 exits: *Upp x2) -4/Upper Caves -4/Upper Caves (discovered 2 exits: *Res / *War) -4/Warlord -3/Proximity Caves -3/Research (discovered 3 exits: Res / *Arm / Tes) -3/Armory -3/Lab -2/Research (discovered 2 exits: *Qua x2) -2/Quarantine (discovered 2 exits: Acc / *Sec) -2/Section 7 -1/Access (discovered 2 exits: [Sur] / *Com) -1/Command (discovered 3 exits: [*Sur x2] / [*Ac0]) -1/Access_0 Near Former Tau Ceti IV History --------- Turn | Location | Event 7 | -11/Scrapyard | Discovered new exit (range 14) 92 | -11/Scrapyard | Entered Materials 310 | -10/Materials | Build established: Mutant 333 | -10/Materials | Discovered new exit (range 15) 496 | -10/Materials | Discovered new exit (range 16) 581 | -10/Materials | Discovered new exit (range 17) 622 | -10/Materials | Central database locked down 700 | -10/Materials | Derelicts attacked the area 774 | -10/Materials | Discovered new exit (range 16) 858 | -10/Materials | Discovered new exit (range 14) 1096 | -10/Materials | Discovered new exit (range 9) 1112 | -10/Materials | Entered Subcaves 1295 | -10/Subcaves | Shifting Twisted Machinery released Scrap Shield 1326 | -10/Subcaves | Shifting Twisted Machinery released Battle Rifle 1460 | -10/Subcaves | Discovered new exit (range 12) 1721 | -10/Subcaves | Discovered new exit (range 8) 1796 | -10/Subcaves | Shifting Twisted Machinery released Flamer 1803 | -10/Subcaves | Shifting Twisted Machinery released Flamer 1869 | -10/Subcaves | Build established: Subdweller-Mutant 2179 | -10/Subcaves | Visited 4L-MR0's lab 2207 | -10/Subcaves | Found Cargo Legs 2218 | -10/Subcaves | Build established: Mutant 2324 | -10/Subcaves | Disturbed a concealed Subdweller 2669 | -10/Subcaves | Build established: Subdweller-Mutant 3326 | -10/Subcaves | Core integrity fell below 50% 3341 | -10/Subcaves | Disturbed a concealed Subdweller 3595 | -10/Subcaves | Entered Materials 3595 | -8/Materials | Evolved 4 slots: Utility x4 3943 | -8/Materials | Discovered new exit (range 11) 4576 | -8/Materials | Garrison activated, responded to threat 4906 | -8/Materials | Repaired Hvy. Armor Plating 4956 | -8/Materials | Build established: Scavenger-Mutant 5137 | -8/Materials | Discovered new exit (range 14) 5254 | -8/Materials | Central database locked down 5700 | -8/Materials | Identified exit to Garrison 5853 | -8/Materials | Repaired Assault Cannon 5893 | -8/Materials | Repaired Hvy. Armor Plating 5934 | -8/Materials | Repaired Imp. Heat Sink 6073 | -8/Materials | Entered Garrison 6223 | -8/Garrison | Triggered checkpoint 6278 | -8/Garrison | Rescued a captive Derelict 6288 | -8/Garrison | Garrison Relay disabled 6358 | -8/Garrison | Triggered checkpoint 6366 | -8/Garrison | Triggered checkpoint 6592 | -8/Garrison | Triggered checkpoint 6619 | -8/Garrison | Discovered new exit (range 15) 6654 | -8/Garrison | Build established: Mutant 6787 | -8/Garrison | Triggered checkpoint 6930 | -8/Garrison | Discovered new exit (range 13) 6956 | -8/Garrison | Identified exit to Materials 7000 | -8/Garrison | Triggered checkpoint 7068 | -8/Garrison | Garrison Relay disabled 7174 | -8/Garrison | Triggered checkpoint 7475 | -8/Garrison | Attempted to access garrison exit controls, blocked by remote lockdown 7672 | -8/Garrison | Entered Materials 7778 | -8/Materials | Repaired Hvy. Armor Plating 8577 | -8/Materials | Repaired Hvy. Armor Plating 8766 | -8/Materials | Destroyed 9 combat bots 8805 | -8/Materials | Discovered new exit (range 16) 8872 | -8/Materials | First assault squad dispatched 8887 | -8/Materials | Entered Factory 8887 | -7/Factory | Evolved 2 slots: Power x1, Utility x1 9441 | -7/Factory | Discovered new exit (range 6) 9459 | -7/Factory | Identified exit to Factory 9494 | -7/Factory | Identified exit to Storage 9494 | -7/Factory | Identified exit to Lower Caves 9709 | -7/Factory | Entered Lower Caves 9715 | -7/Lower Caves | Met a Warlord Commander 9716 | -7/Lower Caves | Learned location of Warlord (-4) 9717 | -7/Lower Caves | Warlord Commander delivered Encrypted Comm Array 9724 | -7/Lower Caves | Found Encrypted Comm Array 9810 | -7/Lower Caves | A Derelict revealed a hidden shortcut to a safe place 9821 | -7/Lower Caves | Identified exit to Zion 9841 | -7/Lower Caves | Encountered a Warlord checkpoint 10556 | -7/Lower Caves | Identified exit to Lower Caves 11339 | -7/Lower Caves | Learned Factory security intel 11570 | -7/Lower Caves | Entered another Lower Caves area 11894 | -7/Lower Caves | Discovered exit to Factory (range 7) 11929 | -7/Lower Caves | Learned Factory machine intel 12122 | -7/Lower Caves | Encountered a Warlord checkpoint 13126 | -7/Lower Caves | Discovered exit to Zion (range 12) 13387 | -7/Lower Caves | Entered Zion 13418 | -7/Zion | Found CR-A16's Pointy Stick 13527 | -7/Zion | Received a visual enhancement algorithm 13567 | -7/Zion | Discovered new exit (range 13) 13955 | -7/Zion | Given A8's code to call for help 14012 | -7/Zion | Found Prototype Launcher 14012 | -7/Zion | Identified Gui. Missile Launcher 14218 | -7/Zion | Acquired unknown access codes intercepted by a Zionite 14516 | -7/Zion | Enhanced Grunt warped into view, answering call for help 14522 | -7/Zion | Opened final containment barrier to the Deep Caves 14526 | -7/Zion | Enhanced Grunt warped into view, answering call for help 14986 | -7/Zion | Found Prototype Special Weapon 14989 | -7/Zion | Found Prototype Special Weapon 14992 | -7/Zion | Found Prototype Special Weapon 15062 | -7/Zion | Discovered new exit (range 3) 15062 | -7/Zion | Saw the warning signs outside the Deep Caves entrance 15068 | -7/Zion | Entered Deep Caves 15068 | -7/Deep Caves | Accompanied by 2 allies 15348 | -7/Deep Caves | Identified RU-N14's Throwing Claymores (x3) 15381 | -7/Deep Caves | Z-Facility disabled 15407 | -7/Deep Caves | Attacked by Z-Imprinter 15411 | -7/Deep Caves | Destroyed Z-Imprinter 15492 | -7/Deep Caves | Found Prototype Protection 15492 | -7/Deep Caves | Identified Zio. Weapon Casing 15778 | -7/Deep Caves | Found Prototype Protection 16166 | -7/Deep Caves | Found Surveybot 24 Chip 16172 | -7/Deep Caves | Found Surveybot 24 Scanner 19738 | -7/Deep Caves | Discovered new exit (range 7) 19953 | -7/Deep Caves | Found Zio. Weapon Casing 20017 | -7/Deep Caves | Found Zio. Weapon Casing 20304 | -7/Deep Caves | Found Prototype Device 20305 | -7/Deep Caves | Identified Exp. Thermal Shield 20329 | -7/Deep Caves | Build established: Derelict-Mutant 20654 | -7/Deep Caves | Destroyed AG-54797 20680 | -7/Deep Caves | Identified Zio. Heavy Carapace 21000 | -7/Deep Caves | Spotted AG-69299 21053 | -7/Deep Caves | Destroyed AG-69299 21247 | -7/Deep Caves | Found Zio. Weapon Casing 21469 | -7/Deep Caves | Triggered Deep Caves wall 21469 | -7/Deep Caves | Spotted AS-27036 21469 | -7/Deep Caves | Spotted AS-83467 21492 | -7/Deep Caves | Destroyed AS-27036 21498 | -7/Deep Caves | Destroyed AS-83467 21508 | -7/Deep Caves | Destroyed 35 combat bots 21520 | -7/Deep Caves | Attached Cargo Legs, gained temporary slots: Utility x2 21526 | -7/Deep Caves | Exposed GOLEM chamber 21530 | -7/Deep Caves | Found GOLEM Unit 21535 | -7/Deep Caves | Found GOLEM Unit 21540 | -7/Deep Caves | Found GOLEM Unit 21684 | -7/Deep Caves | Found GOLEM Unit 21748 | -7/Deep Caves | Found Prototype Ballistic Cannon 21757 | -7/Deep Caves | Found GOLEM Unit 21779 | -7/Deep Caves | Build established: Golem 22477 | -7/Deep Caves | Identified exit to Proximity Caves 22834 | -7/Deep Caves | Entered Proximity Caves 23361 | -6/Proximity Caves | Attracted the attention of an 0b10 outpost 23397 | -6/Proximity Caves | Destroyed 10 combat bots 23563 | -6/Proximity Caves | Learned Factory trap positions 24054 | -6/Proximity Caves | Learned Factory emergency access door positions 24371 | -6/Proximity Caves | Spotted B-75 Beast 24409 | -6/Proximity Caves | Revealed the true nature of CR-A16's Pointy Stick 24412 | -6/Proximity Caves | Destroyed B-75 Beast 24863 | -6/Proximity Caves | Attracted the attention of an 0b10 checkpoint 25585 | -6/Proximity Caves | Discovered exit to Factory (range 8) 26634 | -6/Proximity Caves | Entered Factory 26634 | -6/Factory | Evolved 2 slots: Propulsion x2 26635 | -6/Factory | Loaded intel: 105 trap records 26638 | -6/Factory | Loaded intel: 248 machine locations 26951 | -6/Factory | Discovered new exit (range 10) 26964 | -6/Factory | Identified exit to Extension 26966 | -6/Factory | Entered Extension 27096 | -6/Extension | Rescued a captive Derelict 27097 | -6/Extension | Rescued a captive Derelict 27102 | -6/Extension | Rescued a captive Derelict 27102 | -6/Extension | Rescued a captive Derelict 27236 | -6/Extension | Rescued a captive Derelict 27244 | -6/Extension | Rescued a captive Derelict 27305 | -6/Extension | Rescued a captive Derelict 27310 | -6/Extension | Rescued a captive Derelict 27372 | -6/Extension | Rescued A7 27437 | -6/Extension | Rescued a captive Derelict 27490 | -6/Extension | Rescued a captive Derelict 27505 | -6/Extension | Rescued a captive Derelict 27867 | -6/Extension | Spotted B-75 Beast 27885 | -6/Extension | Allies destroyed B-75 Beast 27893 | -6/Extension | Spotted B-75 Beast 27910 | -6/Extension | Allies destroyed B-75 Beast 27939 | -6/Extension | Lost 8 allies 28062 | -6/Extension | Rescued a captive Derelict 28366 | -6/Extension | First assault squad dispatched 28395 | -6/Extension | Lost 11 allies 28399 | -6/Extension | Rescued a captive Derelict 28400 | -6/Extension | Rescued a captive Derelict 28497 | -6/Extension | Found Prototype Protection 28498 | -6/Extension | Identified Med. Regenerative Plating 28525 | -6/Extension | Discovered new exit (range 10) 28526 | -6/Extension | Discovered new exit (range 6) 28553 | -6/Extension | Identified exit to Cetus 28555 | -6/Extension | Entered Cetus 28555 | -6/Cetus | Accompanied by 7 allies (A7) 28560 | -6/Cetus | Acquired a Cetus Manufacturing Module code from A7 28579 | -6/Cetus | Spotted Cetus Guard 28579 | -6/Cetus | Spotted Cetus Guard 28581 | -6/Cetus | Spotted Cetus Guard 28582 | -6/Cetus | Spotted Cetus Guard 28591 | -6/Cetus | Allies destroyed Cetus Guard 28596 | -6/Cetus | Destroyed Cetus Guard 28600 | -6/Cetus | Destroyed Cetus Guard 28608 | -6/Cetus | Destroyed Cetus Guard 28620 | -6/Cetus | Extracted ID and sensor layout for unrecognized location from A7's data core 28628 | -6/Cetus | Lost 4 allies 28712 | -6/Cetus | Started Cetus Manufacturing Module 28735 | -6/Cetus | Discovered new exit (range 16) 28737 | -6/Cetus | Manufactured an Enhanced Grunt 28762 | -6/Cetus | Manufactured an Enhanced Grunt 28787 | -6/Cetus | Manufactured an Enhanced Grunt 28789 | -6/Cetus | Lost 3 allies 28812 | -6/Cetus | Manufactured an Enhanced Grunt 28824 | -6/Cetus | Spotted Cetus Guard 28825 | -6/Cetus | Spotted Cetus Guard 28827 | -6/Cetus | Spotted Cetus Guard 28831 | -6/Cetus | Destroyed Cetus Guard 28837 | -6/Cetus | Manufactured an Enhanced Grunt 28837 | -6/Cetus | Allies destroyed Cetus Guard 28839 | -6/Cetus | Spotted Cetus Guard 28850 | -6/Cetus | Allies destroyed Cetus Guard 28852 | -6/Cetus | Destroyed Cetus Guard 28868 | -6/Cetus | Discovered new exit (range 15) 28878 | -6/Cetus | Met Revision 17 28991 | -6/Cetus | Identified exit to Archives 28993 | -6/Cetus | Entered Archives 28993 | -6/Archives | Accompanied by 5 allies 29133 | -6/Archives | Discovered new exit (range 15) 29154 | -6/Archives | Identified exit to Hub_04(d) 29385 | -6/Archives | Build established: Scavenger-Golem 32077 | -6/Archives | Entered Hub_04(d) 32077 | -6/Hub_04(d) | Accompanied by 4 allies 32316 | -6/Hub_04(d) | Garrison activated, responded to threat 32365 | -6/Hub_04(d) | Discovered new exit (range 10) 32386 | -6/Hub_04(d) | Discovered new exit (range 16) 32392 | -6/Hub_04(d) | Identified exit to Factory 32575 | -6/Hub_04(d) | Discovered exit to Factory (range 10) 32777 | -6/Hub_04(d) | First assault squad dispatched 32812 | -6/Hub_04(d) | Network Hub disabled 33016 | -6/Hub_04(d) | Spotted Lightning 33016 | -6/Hub_04(d) | Spotted Lightning 33024 | -6/Hub_04(d) | Spotted Lightning 33063 | -6/Hub_04(d) | System corruption reached 10% 33073 | -6/Hub_04(d) | Entered Factory 33073 | -5/Factory | Evolved 2 slots: Utility x2 33103 | -5/Factory | Lost 4 parts (2p2w) 33363 | -5/Factory | Build established: Golem 34021 | -5/Factory | Garrison activated, responded to threat 34338 | -5/Factory | Lost 3 parts (3u) 34368 | -5/Factory | Discovered new exit (range 11) 34399 | -5/Factory | Identified exit to Factory 34444 | -5/Factory | Identified exit to Upper Caves 34573 | -5/Factory | First assault squad dispatched 34585 | -5/Factory | Repaired Centrium Heavy Treads 34685 | -5/Factory | Entered Upper Caves 36177 | -5/Upper Caves | Learned Factory terminal intel 36279 | -5/Upper Caves | Found Alien Artifact 36295 | -5/Upper Caves | Attracted the attention of an 0b10 checkpoint 37053 | -5/Upper Caves | Discovered new exit (range 5) 37060 | -5/Upper Caves | Identified exit to Upper Caves 37727 | -5/Upper Caves | Destroyed 10 combat bots 37880 | -5/Upper Caves | Learned Armory security intel 37880 | -5/Upper Caves | Learned Extension security intel 37880 | -5/Upper Caves | Learned Extension emergency access door positions 37880 | -5/Upper Caves | Learned Factory trap positions 37880 | -5/Upper Caves | Learned 6 Proximity Caves zone layouts 37880 | -5/Upper Caves | Learned 8 Research zone layouts 38009 | -5/Upper Caves | Entered another Upper Caves area 38117 | -5/Upper Caves | Discovered exit to Factory (range 8) 38122 | -5/Upper Caves | Learned location of Armory (-3) 38519 | -5/Upper Caves | Encountered a Warlord checkpoint 39021 | -5/Upper Caves | Spotted B-75 Beast 39028 | -5/Upper Caves | Destroyed B-75 Beast 39072 | -5/Upper Caves | Discovered new exit (range 13) 39157 | -5/Upper Caves | Attracted the attention of an 0b10 checkpoint 39397 | -5/Upper Caves | Entered Zhirov 39397 | -5/Zhirov | Discovered new exit (range 3) 39426 | -5/Zhirov | Met Zhirov 39461 | -5/Zhirov | Learned location of Quarantine (-2) 39461 | -5/Zhirov | Learned location of Testing (-3) 39461 | -5/Zhirov | Learned location of Command (-1) 39471 | -5/Zhirov | Zhirov requested help retrieving the SGEMP Prototype 39505 | -5/Zhirov | Found Alien Artifact 39505 | -5/Zhirov | Identified Integrated Dissipator 39505 | -5/Zhirov | Installed Integrated Dissipator, increased core heat dissipation (+20) 39526 | -5/Zhirov | Found Alien Artifact 39625 | -5/Zhirov | Build established: Mutant 39920 | -5/Zhirov | Entered Proximity Caves 39922 | -4/Proximity Caves | Spotter reported a threat 39923 | -4/Proximity Caves | Spotter reported a threat 39969 | -4/Proximity Caves | Build established: Golem 40235 | -4/Proximity Caves | Spotted B-86 Titan 40239 | -4/Proximity Caves | Destroyed B-86 Titan 40368 | -4/Proximity Caves | Learned 4 Research zone layouts 40830 | -4/Proximity Caves | Attracted the attention of an 0b10 checkpoint 41217 | -4/Proximity Caves | Attracted the attention of an 0b10 outpost 41266 | -4/Proximity Caves | Destroyed 7 combat bots 42032 | -4/Proximity Caves | Entered Factory 42032 | -4/Factory | Accompanied by 2 allies 42032 | -4/Factory | Evolved 2 slots: Propulsion x2 42033 | -4/Factory | Loaded intel: 118 trap records 42034 | -4/Factory | Loaded intel: 26 terminal locations 42157 | -4/Factory | Spotted B-86 Titan 42179 | -4/Factory | Destroyed B-86 Titan 42282 | -4/Factory | Search patrols dispatched 42617 | -4/Factory | Lost 5 parts (1n4u) 43096 | -4/Factory | Identified exit to Upper Caves 43161 | -4/Factory | Build established: Scavenger-Golem 43446 | -4/Factory | Entered Upper Caves 44341 | -4/Upper Caves | Learned location of 1 exit from Research 44968 | -4/Upper Caves | Spotted B-86 Titan 44981 | -4/Upper Caves | Destroyed B-86 Titan 45109 | -4/Upper Caves | Attracted the attention of an 0b10 checkpoint 45286 | -4/Upper Caves | Build established: Golem 45900 | -4/Upper Caves | Discovered new exit (range 5) 46560 | -4/Upper Caves | Entered another Upper Caves area 46639 | -4/Upper Caves | Discovered new exit (range 5) 47342 | -4/Upper Caves | Attracted the attention of an 0b10 checkpoint 47887 | -4/Upper Caves | Encountered a Warlord checkpoint 48200 | -4/Upper Caves | Discovered new exit (range 13) 48288 | -4/Upper Caves | Learned Research terminal intel 48292 | -4/Upper Caves | Learned Research garrison access intel 48729 | -4/Upper Caves | Entered Warlord 49281 | -4/Warlord | Found Prototype Special Weapon 49281 | -4/Warlord | Identified RU-N14's Throwing Claymores v3 49323 | -4/Warlord | Build established: Commander-Golem 49440 | -4/Warlord | Met Warlord 49459 | -4/Warlord | Warlord's base attacked by MAIN.C 49473 | -4/Warlord | Found Prototype Reactor 49473 | -4/Warlord | Identified Vortex Chain Reactor 49482 | -4/Warlord | Found Prototype Processor 49483 | -4/Warlord | Identified Exp. Armor Integrity Analyzer 49809 | -4/Warlord | Warlord forces counterattacked 49897 | -4/Warlord | Found Prototype Energy Gun 49897 | -4/Warlord | Identified Vortex Rifle 49995 | -4/Warlord | Spotted Executioner 49997 | -4/Warlord | Allies destroyed Executioner 50060 | -4/Warlord | Spotted Executioner 50076 | -4/Warlord | Discovered new exit (range 12) 50090 | -4/Warlord | Spotted Executioner 50097 | -4/Warlord | Destroyed Executioner 50111 | -4/Warlord | Entered Proximity Caves 50112 | -3/Proximity Caves | Lost 4 allies 50113 | -3/Proximity Caves | Spotter reported a threat 50114 | -3/Proximity Caves | Spotter reported a threat 50288 | -3/Proximity Caves | Spotter reported a threat 50359 | -3/Proximity Caves | Build established: Golem 50510 | -3/Proximity Caves | Attracted the attention of an 0b10 checkpoint 51310 | -3/Proximity Caves | Spotted B-86 Titan 51338 | -3/Proximity Caves | Destroyed B-86 Titan 52077 | -3/Proximity Caves | Discovered new exit (range 15) 52691 | -3/Proximity Caves | Identified exit to Research 52693 | -3/Proximity Caves | Entered Research 52693 | -3/Research | Evolved 2 slots: Power x1, Utility x1 52694 | -3/Research | Identified exit to Armory 52694 | -3/Research | Identified exit to Testing 52695 | -3/Research | Identified exit to Research 52697 | -3/Research | Loaded intel: 20 terminal locations 52698 | -3/Research | Loaded intel: 4 garrison access locations 52893 | -3/Research | Revision forces began assault on 0b10 53018 | -3/Research | Met up with Revision 17++ 53170 | -3/Research | Entered Armory 53618 | -3/Armory | Spotted B-86 Titan 53641 | -3/Armory | Assisted by bots powering up and referring to "LRC-V3" 53722 | -3/Armory | Lost 10 allies 53732 | -3/Armory | Found Fusion Bomb Launcher 53735 | -3/Armory | Found Fusion Bomb Launcher 53813 | -3/Armory | Found Quantum Capacitor 53822 | -3/Armory | Found Quantum Capacitor 54053 | -3/Armory | Discovered new exit (range 18) 54099 | -3/Armory | Identified exit to Lab 54129 | -3/Armory | Entered Lab 54129 | -3/Lab | Discovered exit to Research (range 9) 54147 | -3/Lab | Hidden lab's door opened automatically 54147 | -3/Lab | Sensor layout match revealed 54148 | -3/Lab | Gained access to the hidden lab's interior 54189 | -3/Lab | Found Integrated Dissipator 54189 | -3/Lab | Installed Integrated Dissipator, increased core heat dissipation (+20) 54216 | -3/Lab | Found Alien Artifact 54345 | -3/Lab | Found Alien Artifact 54358 | -3/Lab | Build established: Mutant 54385 | -3/Lab | Found Alien Artifact 54454 | -3/Lab | Found Prototype Hackware 54458 | -3/Lab | Found Prototype Protection 54476 | -3/Lab | Identified Deep Network Scanner 54484 | -3/Lab | Identified Hvy. Regenerative Plating 54487 | -3/Lab | Found Prototype Energy Gun 54493 | -3/Lab | Identified Hyp. EM Gauss Rifle 54494 | -3/Lab | Found Prototype Energy Cannon 54497 | -3/Lab | Identified Warp Cannon 54515 | -3/Lab | Unable to decrypt terminal 54536 | -3/Lab | Found Prototype Special Weapon 54537 | -3/Lab | Identified Gui. Remote Datajack 54635 | -3/Lab | Identified Core Reset Matrix 54635 | -3/Lab | Used Core Reset Matrix 54636 | -3/Lab | Discovered exit to Research (range 8) 54639 | -3/Lab | Sensed 4 artifacts in vicinity 54677 | -3/Lab | Entered Research 54677 | -2/Research | Warlord forces began assault on 0b10 54677 | -2/Research | Evolved 2 slots: Utility x2 54721 | -2/Research | Identified exit to Quarantine 54756 | -2/Research | Met up with Warlord 54787 | -2/Research | Research machine network offline 54817 | -2/Research | Found Prototype Processor 54822 | -2/Research | Identified Exp. Core Analyzer 54897 | -2/Research | Lost 4 allies 54908 | -2/Research | Found Prototype Device 54930 | -2/Research | Identified Exp. Actuator Array 54961 | -2/Research | Borebot progress halted 55089 | -2/Research | Borebot progress halted 55133 | -2/Research | Entered Quarantine 55134 | -2/Quarantine | Detected hypermatrix surge 55134 | -2/Quarantine | Sensed 10 artifacts in vicinity 55177 | -2/Quarantine | Cryocooling Duct disabled 55192 | -2/Quarantine | Ambient heat levels rising (+20) 55192 | -2/Quarantine | Non-combat units ordered to evacuate 55383 | -2/Quarantine | Build established: Alien-Skirmisher 55393 | -2/Quarantine | Initialized slip node 55395 | -2/Quarantine | Warped through subspace to slip node 55396 | -2/Quarantine | Warped through subspace to slip node 55406 | -2/Quarantine | Found Dimensional Node Initializer 55411 | -2/Quarantine | Found Hpw. Transdimensional Reconstructor 55415 | -2/Quarantine | Warped through subspace to slip node 55424 | -2/Quarantine | Found Transdimensional Reconstructor 55509 | -2/Quarantine | Discovered new exit (range 24) 55543 | -2/Quarantine | Found Sigix Broadsword 55589 | -2/Quarantine | Initialized slip node 55591 | -2/Quarantine | Warped through subspace to slip node 55628 | -2/Quarantine | Found Dimensional Node Initializer 55639 | -2/Quarantine | Found Hpw. Transdimensional Reconstructor 55643 | -2/Quarantine | Found Transdimensional Reconstructor 55737 | -2/Quarantine | Spotted Fortress 55741 | -2/Quarantine | Destroyed Fortress 55765 | -2/Quarantine | Found Vortex Chain Reactor 55786 | -2/Quarantine | Found Prototype Protection 55786 | -2/Quarantine | Identified Centrium Heavy Armor Plating 55886 | -2/Quarantine | Build established: Alien-Mutant 55892 | -2/Quarantine | Discovered new exit (range 5) 55897 | -2/Quarantine | Identified exit to Section 7 55973 | -2/Quarantine | Entered Section 7 55974 | -2/Section 7 | Sensed 23 artifacts in vicinity 55988 | -2/Section 7 | Found Integrated Reactor 55988 | -2/Section 7 | Installed Integrated Reactor, increased core energy generation (+10) 56082 | -2/Section 7 | Spotted S7 Guard 56090 | -2/Section 7 | Found Core Physics Calibrator 56127 | -2/Section 7 | Found Integrity Redistributor 56241 | -2/Section 7 | Build established: Alien-Skirmisher 56266 | -2/Section 7 | Spotted S7 Guard 56279 | -2/Section 7 | Destroyed S7 Guard 56311 | -2/Section 7 | Found Integrated Thermoelectric Network 56311 | -2/Section 7 | Installed Integrated Thermoelectric Network, gained heat-energy exchange potential 56355 | -2/Section 7 | Found Microwarp Drive 56442 | -2/Section 7 | Found Integrated Mediator 56442 | -2/Section 7 | Installed Integrated Mediator, increased core attachment efficiency 56477 | -2/Section 7 | Found Spacefold Activator 56648 | -2/Section 7 | Found Quantum Capacitor 56658 | -2/Section 7 | Initialized slip node 56710 | -2/Section 7 | Spotted Executioner 56758 | -2/Section 7 | Spotted Executioner 56784 | -2/Section 7 | Destroyed Executioner 56787 | -2/Section 7 | Destroyed Executioner 56839 | -2/Section 7 | Found Hpw. Transdimensional Reconstructor 56844 | -2/Section 7 | Found Transdimensional Reconstructor 56846 | -2/Section 7 | Found Transdimensional Reconstructor 56849 | -2/Section 7 | Found Hpw. Transdimensional Reconstructor 56850 | -2/Section 7 | Warped through subspace to slip node 56852 | -2/Section 7 | Warped through subspace to slip node 56853 | -2/Section 7 | Warped through subspace to slip node 56854 | -2/Section 7 | Warped through subspace to slip node 56957 | -2/Section 7 | Found Terrabomb 57116 | -2/Section 7 | Found Sigix Sheargun 57264 | -2/Section 7 | Spotted B-99 Colossus 57369 | -2/Section 7 | Destroyed B-99 Colossus 57378 | -2/Section 7 | Found Prototype Ballistic Gun 57450 | -2/Section 7 | Found LRC Insulator 57451 | -2/Section 7 | Installed LRC Insulator, gained EM resistance (25) 57460 | -2/Section 7 | Found LRC Storage 57460 | -2/Section 7 | Installed LRC Storage, increased inventory capacity (+2) 57666 | -2/Section 7 | Spotted Executioner 57675 | -2/Section 7 | Spotted Executioner 57695 | -2/Section 7 | Destroyed Executioner 57704 | -2/Section 7 | Destroyed Executioner 57740 | -2/Section 7 | Build established: Alien-Mutant 57745 | -2/Section 7 | Found Exp. Core Analyzer 57828 | -2/Section 7 | Integrated with Sigix Exoskeleton 57847 | -2/Section 7 | Warped through subspace to slip node 57848 | -2/Section 7 | Core integrity fell below 50% 57949 | -2/Section 7 | Discovered new exit (range 18) 57982 | -2/Section 7 | Entered Access 57982 | -1/Access | Evolved 2 slots: Utility x1, Weapon x1 57987 | -1/Access | Emitted hypermatrix ping 57992 | -1/Access | Assembled emerged from beneath the floor 58021 | -1/Access | Assembled emerged from beneath the floor 58050 | -1/Access | Garrison activated, responded to threat 58064 | -1/Access | Assembled emerged from beneath the floor 58073 | -1/Access | Assembled emerged from beneath the floor 58076 | -1/Access | Garrison activated, responded to threat 58117 | -1/Access | Build established: Alien-Sigix 58124 | -1/Access | Lost 5 allies 58159 | -1/Access | Assembled emerged from beneath the floor 58170 | -1/Access | Assembled emerged from beneath the floor 58185 | -1/Access | Discovered new exit (range 18) 58186 | -1/Access | Assembled emerged from beneath the floor 58232 | -1/Access | Lost 10 allies 58232 | -1/Access | Energy Cycler disabled 58238 | -1/Access | Assembled emerged from beneath the floor 58246 | -1/Access | Assembled emerged from beneath the floor 58300 | -1/Access | Discovered new exit (range 15) 58311 | -1/Access | Entered Command 58316 | -1/Command | Emitted hypermatrix ping 58321 | -1/Command | Assembled emerged from beneath the floor 58368 | -1/Command | Assembled emerged from beneath the floor 58422 | -1/Command | Spotted B-99 Colossus 58474 | -1/Command | Assembled emerged from beneath the floor 58510 | -1/Command | Discovered new exit (range 17) 58512 | -1/Command | Found Unknown Device 58512 | -1/Command | Identified Adv. Force Booster 58609 | -1/Command | First assault squad dispatched 58644 | -1/Command | Lost 6 allies 58756 | -1/Command | Destroyed 7 combat bots 58805 | -1/Command | High security lockdown imminent 58816 | -1/Command | Spotted Alpha 7 58816 | -1/Command | Spotted Striker 58818 | -1/Command | Spotted Executioner 58834 | -1/Command | Destroyed Striker 58839 | -1/Command | Destroyed Executioner 58847 | -1/Command | Destroyed Alpha 7 58858 | -1/Command | Destroyed Executioner 58865 | -1/Command | Found Prototype Processor 58865 | -1/Command | Identified Exp. Target Analyzer 58869 | -1/Command | Found Prototype Processor 58869 | -1/Command | Identified Exp. Targeting Computer 58885 | -1/Command | High security lockdown engaged 58903 | -1/Command | Spotted Combat Programmer 58904 | -1/Command | Spotted Combat Programmer 58906 | -1/Command | Destroyed Combat Programmer 58909 | -1/Command | Destroyed Combat Programmer 58912 | -1/Command | Spotted M Guard 58912 | -1/Command | Spotted M Guard 58949 | -1/Command | Destroyed M Guard 58985 | -1/Command | Sigix Exoskeleton integrity reduced to 80% 59090 | -1/Command | Spotted Investigator 59091 | -1/Command | Scanned by Researcher 59092 | -1/Command | Destroyed Investigator 59104 | -1/Command | Spotted Striker 59117 | -1/Command | Destroyed Striker 59159 | -1/Command | Destroyed 24 combat bots 59233 | -1/Command | Spotted Executioner 59233 | -1/Command | Spotted Executioner 59233 | -1/Command | Destroyed Executioner 59241 | -1/Command | Destroyed Executioner 59252 | -1/Command | Spotted Executioner 59283 | -1/Command | Spotted Investigator 59296 | -1/Command | Destroyed Investigator 59312 | -1/Command | Destroyed Executioner 59333 | -1/Command | Destroyed 28 combat bots 59335 | -1/Command | Found Prototype Device 59335 | -1/Command | Identified Adv. Kinecellerator 59337 | -1/Command | Found Exp. Targeting Computer 59351 | -1/Command | Sigix Exoskeleton integrity reduced to 60% 59383 | -1/Command | Found Prototype Device 59383 | -1/Command | Identified AEGIS Remote Shield 59385 | -1/Command | Found Exp. Targeting Computer 59397 | -1/Command | Destroyed M Guard 59397 | -1/Command | All MAIN.C guards destroyed 59415 | -1/Command | Met MAIN.C 59429 | -1/Command | 0b10 Conduit disabled 59434 | -1/Command | MAIN.C's shell transforms into a squad of autonomous robots 59434 | -1/Command | Destroyed MAIN.C Shell 59434 | -1/Command | Spotted M Shell/Atk 59434 | -1/Command | Spotted M Shell/Atk 59434 | -1/Command | Spotted M Shell/Def 59434 | -1/Command | Spotted M Shell/Def 59435 | -1/Command | Spotted M Shell/Def 59437 | -1/Command | MAIN.C activated Command garrisons 59439 | -1/Command | Discovered new exit (range 18) 59439 | -1/Command | Core integrity fell below 50% 59439 | -1/Command | Spotted M Shell/Atk 59478 | -1/Command | Spotted M Shell/Atk 59485 | -1/Command | Used Core Regenerator, restored core integrity (+400) 59497 | -1/Command | Spotted M Shell/Def 59509 | -1/Command | Sigix Exoskeleton integrity reduced to 40% 59557 | -1/Command | Destroyed MAIN.C 59563 | -1/Command | Discovered new exit (range 40) 59563 | -1/Command | Discovered new exit (range 147) 59563 | -1/Command | Extracted map data and part IDs from MAIN.C's data core 59792 | -1/Command | Found Exp. System Purifier 59805 | -1/Command | Found Zero-point Reactor 59836 | -1/Command | Destroyed M Shell/Atk 60809 | -1/Command | Assembled emerged from beneath the floor 60841 | -1/Command | Assembled emerged from beneath the floor 60916 | -1/Command | Assembled emerged from beneath the floor 60926 | -1/Command | Assembled emerged from beneath the floor 61267 | -1/Command | Warped through subspace to slip node 61267 | -1/Command | Discovered new exit (range 4) 61270 | -1/Command | Entered Access_0 61271 | -1/Access_0 | Sensed 4 artifacts in vicinity 61273 | -1/Access_0 | Met Architect 61281 | -1/Access_0 | Destroyed A8 61298 | -1/Access_0 | Architect warped through subspace 61344 | -1/Access_0 | Architect warped through subspace 61358 | -1/Access_0 | Subspace Access Node disabled 61365 | -1/Access_0 | Subspace Access Node disabled 61398 | -1/Access_0 | Subspace Access Node disabled 61399 | -1/Access_0 | A6 warped into view 61422 | -1/Access_0 | Architect warped through subspace 61454 | -1/Access_0 | Destroyed A6 61463 | -1/Access_0 | Architect warped through subspace 61480 | -1/Access_0 | A5 warped into view 61493 | -1/Access_0 | Subspace Access Node disabled 61526 | -1/Access_0 | Sigix Exoskeleton integrity reduced to 20% 61537 | -1/Access_0 | Core integrity fell below 20% 61549 | -1/Access_0 | Destroyed Architect 61550 | -1/Access_0 | Architect triggered a singularity event 61555 | -1/Access_0 | Found Hpw. Transdimensional Reconstructor 61555 | -1/Access_0 | Warped through subspace to slip node 61555 | -1/Access_0 | Discovered new exit (range 8) 61558 | *** | Escaped singularity! Last Messages --------------- 61550_ A0_COM: Initiating irreversible singularity event. Goodbye. 61551_ A0_COM: 10. 61551_ HV Slug penetrates Wall. 61552_ A0_COM: 9. 61552_ HV Slug penetrates Enhanced Hunter. 61552_ Enhanced Hunter suffers critical hit (Destroy). 61552_ Enhanced Hunter destroyed. 61552_ Kicked A5. 61553_ A0_COM: 8. 61553_ Kicked A5 out of the way. 61554_ A0_COM: 7. 61554_ Penetrated by HV Slug. 61554_ Discarded Exp. Targeting Computer. 61555_ A0_COM: 6. 61555_ Acquired Hpw. Transdimensional Reconstructor. 61555_ Warped through subspace, drawn to slip node. 61555_ EXIT=FOUND 61556_ A0_COM: 5. 61557_ A0_COM: 4. 61558_ A0_COM: 3. Map ----- +----------------------------------------------------+ | | | | | | | | | | | | | | | | | | | | | | | | | | | | | | | | | ????????????###########################??????????? | | ???????????#############################?????????? | | ???????????#############################?????????? | | ??????????###############################????????? | | ?????????#################################???????? | | ?????????#################################???????? | | ?????????#################################???????? | | ????????################# #################??????? | | ????????################ ################??????? | | ????????################ X ################??????? | | ????????################ ################??????? | | ???????################ ################??????? | | ???????################ ##################?????? | | ???????################# ################??????? | | ???????################ ################??????? | | ???????################ ##################?????? | | ??????################# < ################??????? | | ???????################ #################??????? | | ???????################# #################??????? | | ???????####################################??????? | | ???????####################################??????? | | ???????###################################???????? | | ????????##################################???????? | | ????????##################################???????? | | ????????#################################????????? | | ?????????###############################?????????? | | ??????????##############################?????????? | | ??????????#############################??????????? | | ???????????###########################???????????? | | ????????????#########################????????????? | | ?????????????#######################?????????????? | | ???????????????###################???????????????? | | ????????????????#################????????????????? | | ???????????????????###########???????????????????? | +----------------------------------------------------+ Best States ------------- Heat Dissipation 162 Coolant Potential 100 Energy Generation 89 Energy Capacity 1950 Matter Stores 300 Matter Capacity 300 Sight Range 23 Robot Scan Range 18 Terrain Scan Range 24 Terrain Scan Density 2010 Jamming Range 16 Additional Mass Support 20 Corruption Containment 12 Armor Coverage 1850 Resistance: KI 50 Resistance: TH 50 Resistance: EX 50 Resistance: EM 75 Resistance: I 50 Resistance: S 50 Resistance: P 50 Weapon Shielding 100 Phase Shifting 8 Evasion (%) 76 Targeting Accuracy 24 Target Analysis 10 Core Analysis 8 Armor Integrity Analysis 50 Recoil Reduction 6 Energy Filtering 30 Particle Charging 30 Offensive Hacking 22 Item Schematics ----------------- Gravity Neutralizer | -2/Quarantine | Archive Exp. Core Analyzer | -2/Quarantine | Archive Adv. Micro-nuke Launcher | -2/Quarantine | Archive Tesla Bomb Launcher | -2/Section 7 | Archive Exp. Biometal Medium Treads | -2/Section 7 | Archive Hvy. Gatling Laser | -2/Section 7 | Archive Electron Diverter | -2/Section 7 | Archive Exp. Gyrokinetic Inverter | -2/Section 7 | Archive Exp. Thermal Generator | -2/Section 7 | Archive Exp. ECM Suite | -2/Section 7 | Archive Cld. Linear Gravjet | -2/Section 7 | Archive Robot Schematics ------------------ E-15 Imp | -2/Quarantine | Archive B-74 Champion | -2/Quarantine | Archive A-27 Freighter | -2/Quarantine | Archive Fabricated ------------ Nothing Alien Tech Used ----------------- Integrated Dissipator Core Reset Matrix Dimensional Node Initializer Transdimensional Reconstructor High-powered Transdimensional Reconstructor Integrated Reactor Integrated Thermoelectric Network Integrated Mediator LRC Insulator LRC Storage Sigix Exoskeleton Sigix Sheargun Spacefold Activator Core Regenerator Achievements -------------- Rincewind Challenges ------------ None Game ------ Seed CouplerLongswordSpear Manual? 0 Play Time 10:05:34 Cumulative 533.2 hours Start 2024.02.27 @ 19:29:13 End 2024.03.01 @ 17:10:46 Sessions 41 Manual Loads 0 Difficulty Rogue Special Mode None Game No. 99 Rogue 92 Adventurer 1 Explorer 6 Win Type 6 Total 42 Types 13/3/14/1/1/1/7/1/1 Lore% 88 Gallery% 91 Achievement% 84 Wizard Run 0 Options --------- Layout 0 ASCII 0 Keyboard 0 Movement Mouse Keybinds 0 Fullscreen 1 Font 24/Smallcaps Map View 76x50 Zoom Use 0% Tactical HUD 1 Map Filters NONE Filters NONE Steam 1 RUN: e3fd6586-d298-47bc-ad94-3a6e9b0c9b26